Workbook

Sheet Thông tin
B2: Tên Công ty: | C2: TỔNG CÔNG TY XD CTGT 6 - CÔNG TY CỔ PHẦN
B3: Địa chỉ: | C3: 127 Đinh Tiên Hoàng, F3, Q.Bình Thạnh, TP.HCM
B4: Tại kho: | C4: Trạm Trộn BTNN Núi Nhọn
B5: Số điện thoại: | C5: 0906690003
B6: Số fax: | C6: 0906690003
B7: Mã số thuế: | C7: 0906690003
B8: Thủ trưởng đơn vị: | C8: Ngô Ngọc Trung
B9: Người lập biểu: | C9: Nguyễn Phi Long
B10: Thủ kho: | C10: Nguyễn Phi Long
B11: Năm theo dõi: | C11: 2014
B12: Ngày đầu Báo cáo: | C12: 2014-01-01
B13: Ngày cuối Báo cáo: | C13: 2014-11-30

Sheet Vật tư
A1: =tt_Tên_Công_ty -> TỔNG CÔNG TY XD CTGT 6 - CÔNG TY CỔ PHẦN
A2: =tt_Địa_chỉ -> 127 Đinh Tiên Hoàng, F3, Q.Bình Thạnh, TP.HCM
A3: ="Tên kho: "&tt_Tên_Kho -> Tên kho: Trạm Trộn BTNN Núi Nhọn
A5: VẬT TƯ HÀNG HÓA
A7: STT | B7: Mã vật tư | C7: Tên vật tư | D7: ĐVT | E7: Số lượng đầu kỳ | F7: Nhập trong kỳ | G7: Xuất trong kỳ | H7: Tồn cuối kỳ | I7: Ghi chú
A8: stt | B8: mavt | C8: tenvt | D8: dvt | E8: sldauky | F8: slnhap | G8: slxuat | H8: slton | I8: ghichu
A9: 1 | B9: ND-001 | C9: Nhựa đường Puma | D9: Tấn | E9: 2 | F9: =SUMIFS('Nhập liệu'!$H$10:$H$1002,'Nhập liệu'!$E$10:$E$1002,'Vật tư'!$B9,'Nhập liệu'!$C$10:$C$1002,">="&'Thông tin'!$C$12,'Nhập liệu'!$C$10:$C$1002,"<="&'Thông tin'!$C$13) -> 52880 | G9: =SUMIFS('Nhập liệu'!$I$10:$I$1002,'Nhập liệu'!$E$10:$E$1002,'Vật tư'!$B9,'Nhập liệu'!$C$10:$C$1002,">="&'Thông tin'!$C$12,'Nhập liệu'!$C$10:$C$1002,"<="&'Thông tin'!$C$13) -> 44993 | H9: =F9-G9 -> 7887
A10: 2 | B10: FO-001 | C10: Dầu FO | D10: Lít | E10: 2 | F10: =SUMIFS('Nhập liệu'!$H$10:$H$1002,'Nhập liệu'!$E$10:$E$1002,'Vật tư'!$B10,'Nhập liệu'!$C$10:$C$1002,">="&'Thông tin'!$C$12,'Nhập liệu'!$C$10:$C$1002,"<="&'Thông tin'!$C$13) -> 29942 | G10: =SUMIFS('Nhập liệu'!$I$10:$I$1002,'Nhập liệu'!$E$10:$E$1002,'Vật tư'!$B10,'Nhập liệu'!$C$10:$C$1002,">="&'Thông tin'!$C$12,'Nhập liệu'!$C$10:$C$1002,"<="&'Thông tin'!$C$13) -> 18999 | H10: =F10-G10 -> 10943
A11: 3 | B11: BK-001 | C11: Bột Khoáng Holeim | D11: Tấn | E11: 2 | F11: =SUMIFS('Nhập liệu'!$H$10:$H$1002,'Nhập liệu'!$E$10:$E$1002,'Vật tư'!$B11,'Nhập liệu'!$C$10:$C$1002,">="&'Thông tin'!$C$12,'Nhập liệu'!$C$10:$C$1002,"<="&'Thông tin'!$C$13) -> 40 | G11: =SUMIFS('Nhập liệu'!$I$10:$I$1002,'Nhập liệu'!$E$10:$E$1002,'Vật tư'!$B11,'Nhập liệu'!$C$10:$C$1002,">="&'Thông tin'!$C$12,'Nhập liệu'!$C$10:$C$1002,"<="&'Thông tin'!$C$13) -> 69.5 | H11: -29.5
A12: 4 | B12: CA-001 | C12: Cát | D12: M3 | E12: 2 | F12: =SUMIFS('Nhập liệu'!$H$10:$H$1002,'Nhập liệu'!$E$10:$E$1002,'Vật tư'!$B12,'Nhập liệu'!$C$10:$C$1002,">="&'Thông tin'!$C$12,'Nhập liệu'!$C$10:$C$1002,"<="&'Thông tin'!$C$13) -> 311 | G12: =SUMIFS('Nhập liệu'!$I$10:$I$1002,'Nhập liệu'!$E$10:$E$1002,'Vật tư'!$B12,'Nhập liệu'!$C$10:$C$1002,">="&'Thông tin'!$C$12,'Nhập liệu'!$C$10:$C$1002,"<="&'Thông tin'!$C$13) -> 183 | H12: 128
F13: =SUMIFS('Nhập liệu'!$H$10:$H$1002,'Nhập liệu'!$E$10:$E$1002,'Vật tư'!$B13,'Nhập liệu'!$C$10:$C$1002,">="&'Thông tin'!$C$12,'Nhập liệu'!$C$10:$C$1002,"<="&'Thông tin'!$C$13) -> 0 | G13: =SUMIFS('Nhập liệu'!$I$10:$I$1002,'Nhập liệu'!$E$10:$E$1002,'Vật tư'!$B13,'Nhập liệu'!$C$10:$C$1002,">="&'Thông tin'!$C$12,'Nhập liệu'!$C$10:$C$1002,"<="&'Thông tin'!$C$13) -> 0 | H13: 0
F14: =SUMIFS('Nhập liệu'!$H$10:$H$1002,'Nhập liệu'!$E$10:$E$1002,'Vật tư'!$B14,'Nhập liệu'!$C$10:$C$1002,">="&'Thông tin'!$C$12,'Nhập liệu'!$C$10:$C$1002,"<="&'Thông tin'!$C$13) -> 0 | G14: =SUMIFS('Nhập liệu'!$I$10:$I$1002,'Nhập liệu'!$E$10:$E$1002,'Vật tư'!$B14,'Nhập liệu'!$C$10:$C$1002,">="&'Thông tin'!$C$12,'Nhập liệu'!$C$10:$C$1002,"<="&'Thông tin'!$C$13) -> 0 | H14: 0
F15: =SUMIFS('Nhập liệu'!$H$10:$H$1002,'Nhập liệu'!$E$10:$E$1002,'Vật tư'!$B15,'Nhập liệu'!$C$10:$C$1002,">="&'Thông tin'!$C$12,'Nhập liệu'!$C$10:$C$1002,"<="&'Thông tin'!$C$13) -> 0 | G15: =SUMIFS('Nhập liệu'!$I$10:$I$1002,'Nhập liệu'!$E$10:$E$1002,'Vật tư'!$B15,'Nhập liệu'!$C$10:$C$1002,">="&'Thông tin'!$C$12,'Nhập liệu'!$C$10:$C$1002,"<="&'Thông tin'!$C$13) -> 0 | H15: 0
F16: =SUMIFS('Nhập liệu'!$H$10:$H$1002,'Nhập liệu'!$E$10:$E$1002,'Vật tư'!$B16,'Nhập liệu'!$C$10:$C$1002,">="&'Thông tin'!$C$12,'Nhập liệu'!$C$10:$C$1002,"<="&'Thông tin'!$C$13) -> 0 | G16: =SUMIFS('Nhập liệu'!$I$10:$I$1002,'Nhập liệu'!$E$10:$E$1002,'Vật tư'!$B16,'Nhập liệu'!$C$10:$C$1002,">="&'Thông tin'!$C$12,'Nhập liệu'!$C$10:$C$1002,"<="&'Thông tin'!$C$13) -> 0 | H16: 0
F17: =SUMIFS('Nhập liệu'!$H$10:$H$1002,'Nhập liệu'!$E$10:$E$1002,'Vật tư'!$B17,'Nhập liệu'!$C$10:$C$1002,">="&'Thông tin'!$C$12,'Nhập liệu'!$C$10:$C$1002,"<="&'Thông tin'!$C$13) -> 0 | G17: =SUMIFS('Nhập liệu'!$I$10:$I$1002,'Nhập liệu'!$E$10:$E$1002,'Vật tư'!$B17,'Nhập liệu'!$C$10:$C$1002,">="&'Thông tin'!$C$12,'Nhập liệu'!$C$10:$C$1002,"<="&'Thông tin'!$C$13) -> 0 | H17: 0
F18: =SUMIFS('Nhập liệu'!$H$10:$H$1002,'Nhập liệu'!$E$10:$E$1002,'Vật tư'!$B18,'Nhập liệu'!$C$10:$C$1002,">="&'Thông tin'!$C$12,'Nhập liệu'!$C$10:$C$1002,"<="&'Thông tin'!$C$13) -> 0 | G18: =SUMIFS('Nhập liệu'!$I$10:$I$1002,'Nhập liệu'!$E$10:$E$1002,'Vật tư'!$B18,'Nhập liệu'!$C$10:$C$1002,">="&'Thông tin'!$C$12,'Nhập liệu'!$C$10:$C$1002,"<="&'Thông tin'!$C$13) -> 0 | H18: 0
F19: =SUMIFS('Nhập liệu'!$H$10:$H$1002,'Nhập liệu'!$E$10:$E$1002,'Vật tư'!$B19,'Nhập liệu'!$C$10:$C$1002,">="&'Thông tin'!$C$12,'Nhập liệu'!$C$10:$C$1002,"<="&'Thông tin'!$C$13) -> 0 | G19: =SUMIFS('Nhập liệu'!$I$10:$I$1002,'Nhập liệu'!$E$10:$E$1002,'Vật tư'!$B19,'Nhập liệu'!$C$10:$C$1002,">="&'Thông tin'!$C$12,'Nhập liệu'!$C$10:$C$1002,"<="&'Thông tin'!$C$13) -> 0 | H19: 0
F20: =SUMIFS('Nhập liệu'!$H$10:$H$1002,'Nhập liệu'!$E$10:$E$1002,'Vật tư'!$B20,'Nhập liệu'!$C$10:$C$1002,">="&'Thông tin'!$C$12,'Nhập liệu'!$C$10:$C$1002,"<="&'Thông tin'!$C$13) -> 0 | G20: =SUMIFS('Nhập liệu'!$I$10:$I$1002,'Nhập liệu'!$E$10:$E$1002,'Vật tư'!$B20,'Nhập liệu'!$C$10:$C$1002,">="&'Thông tin'!$C$12,'Nhập liệu'!$C$10:$C$1002,"<="&'Thông tin'!$C$13) -> 0 | H20: 0
F21: =SUMIFS('Nhập liệu'!$H$10:$H$1002,'Nhập liệu'!$E$10:$E$1002,'Vật tư'!$B21,'Nhập liệu'!$C$10:$C$1002,">="&'Thông tin'!$C$12,'Nhập liệu'!$C$10:$C$1002,"<="&'Thông tin'!$C$13) -> 0 | G21: =SUMIFS('Nhập liệu'!$I$10:$I$1002,'Nhập liệu'!$E$10:$E$1002,'Vật tư'!$B21,'Nhập liệu'!$C$10:$C$1002,">="&'Thông tin'!$C$12,'Nhập liệu'!$C$10:$C$1002,"<="&'Thông tin'!$C$13) -> 0 | H21: 0
F22: =SUMIFS('Nhập liệu'!$H$10:$H$1002,'Nhập liệu'!$E$10:$E$1002,'Vật tư'!$B22,'Nhập liệu'!$C$10:$C$1002,">="&'Thông tin'!$C$12,'Nhập liệu'!$C$10:$C$1002,"<="&'Thông tin'!$C$13) -> 0 | G22: =SUMIFS('Nhập liệu'!$I$10:$I$1002,'Nhập liệu'!$E$10:$E$1002,'Vật tư'!$B22,'Nhập liệu'!$C$10:$C$1002,">="&'Thông tin'!$C$12,'Nhập liệu'!$C$10:$C$1002,"<="&'Thông tin'!$C$13) -> 0 | H22: 0
F23: =SUMIFS('Nhập liệu'!$H$10:$H$1002,'Nhập liệu'!$E$10:$E$1002,'Vật tư'!$B23,'Nhập liệu'!$C$10:$C$1002,">="&'Thông tin'!$C$12,'Nhập liệu'!$C$10:$C$1002,"<="&'Thông tin'!$C$13) -> 0 | G23: =SUMIFS('Nhập liệu'!$I$10:$I$1002,'Nhập liệu'!$E$10:$E$1002,'Vật tư'!$B23,'Nhập liệu'!$C$10:$C$1002,">="&'Thông tin'!$C$12,'Nhập liệu'!$C$10:$C$1002,"<="&'Thông tin'!$C$13) -> 0 | H23: 0
F24: =SUMIFS('Nhập liệu'!$H$10:$H$1002,'Nhập liệu'!$E$10:$E$1002,'Vật tư'!$B24,'Nhập liệu'!$C$10:$C$1002,">="&'Thông tin'!$C$12,'Nhập liệu'!$C$10:$C$1002,"<="&'Thông tin'!$C$13) -> 0 | G24: =SUMIFS('Nhập liệu'!$I$10:$I$1002,'Nhập liệu'!$E$10:$E$1002,'Vật tư'!$B24,'Nhập liệu'!$C$10:$C$1002,">="&'Thông tin'!$C$12,'Nhập liệu'!$C$10:$C$1002,"<="&'Thông tin'!$C$13) -> 0 | H24: 0
F25: =SUMIFS('Nhập liệu'!$H$10:$H$1002,'Nhập liệu'!$E$10:$E$1002,'Vật tư'!$B25,'Nhập liệu'!$C$10:$C$1002,">="&'Thông tin'!$C$12,'Nhập liệu'!$C$10:$C$1002,"<="&'Thông tin'!$C$13) -> 0 | G25: =SUMIFS('Nhập liệu'!$I$10:$I$1002,'Nhập liệu'!$E$10:$E$1002,'Vật tư'!$B25,'Nhập liệu'!$C$10:$C$1002,">="&'Thông tin'!$C$12,'Nhập liệu'!$C$10:$C$1002,"<="&'Thông tin'!$C$13) -> 0 | H25: 0
F26: =SUMIFS('Nhập liệu'!$H$10:$H$1002,'Nhập liệu'!$E$10:$E$1002,'Vật tư'!$B26,'Nhập liệu'!$C$10:$C$1002,">="&'Thông tin'!$C$12,'Nhập liệu'!$C$10:$C$1002,"<="&'Thông tin'!$C$13) -> 0 | G26: =SUMIFS('Nhập liệu'!$I$10:$I$1002,'Nhập liệu'!$E$10:$E$1002,'Vật tư'!$B26,'Nhập liệu'!$C$10:$C$1002,">="&'Thông tin'!$C$12,'Nhập liệu'!$C$10:$C$1002,"<="&'Thông tin'!$C$13) -> 0 | H26: 0
F27: =SUMIFS('Nhập liệu'!$H$10:$H$1002,'Nhập liệu'!$E$10:$E$1002,'Vật tư'!$B27,'Nhập liệu'!$C$10:$C$1002,">="&'Thông tin'!$C$12,'Nhập liệu'!$C$10:$C$1002,"<="&'Thông tin'!$C$13) -> 0 | G27: =SUMIFS('Nhập liệu'!$I$10:$I$1002,'Nhập liệu'!$E$10:$E$1002,'Vật tư'!$B27,'Nhập liệu'!$C$10:$C$1002,">="&'Thông tin'!$C$12,'Nhập liệu'!$C$10:$C$1002,"<="&'Thông tin'!$C$13) -> 0 | H27: 0
F28: =SUMIFS('Nhập liệu'!$H$10:$H$1002,'Nhập liệu'!$E$10:$E$1002,'Vật tư'!$B28,'Nhập liệu'!$C$10:$C$1002,">="&'Thông tin'!$C$12,'Nhập liệu'!$C$10:$C$1002,"<="&'Thông tin'!$C$13) -> 0 | G28: =SUMIFS('Nhập liệu'!$I$10:$I$1002,'Nhập liệu'!$E$10:$E$1002,'Vật tư'!$B28,'Nhập liệu'!$C$10:$C$1002,">="&'Thông tin'!$C$12,'Nhập liệu'!$C$10:$C$1002,"<="&'Thông tin'!$C$13) -> 0 | H28: 0
F29: =SUMIFS('Nhập liệu'!$H$10:$H$1002,'Nhập liệu'!$E$10:$E$1002,'Vật tư'!$B29,'Nhập liệu'!$C$10:$C$1002,">="&'Thông tin'!$C$12,'Nhập liệu'!$C$10:$C$1002,"<="&'Thông tin'!$C$13) -> 0 | G29: =SUMIFS('Nhập liệu'!$I$10:$I$1002,'Nhập liệu'!$E$10:$E$1002,'Vật tư'!$B29,'Nhập liệu'!$C$10:$C$1002,">="&'Thông tin'!$C$12,'Nhập liệu'!$C$10:$C$1002,"<="&'Thông tin'!$C$13) -> 0 | H29: 0
F30: =SUMIFS('Nhập liệu'!$H$10:$H$1002,'Nhập liệu'!$E$10:$E$1002,'Vật tư'!$B30,'Nhập liệu'!$C$10:$C$1002,">="&'Thông tin'!$C$12,'Nhập liệu'!$C$10:$C$1002,"<="&'Thông tin'!$C$13) -> 0 | G30: =SUMIFS('Nhập liệu'!$I$10:$I$1002,'Nhập liệu'!$E$10:$E$1002,'Vật tư'!$B30,'Nhập liệu'!$C$10:$C$1002,">="&'Thông tin'!$C$12,'Nhập liệu'!$C$10:$C$1002,"<="&'Thông tin'!$C$13) -> 0 | H30: 0
F31: =SUMIFS('Nhập liệu'!$H$10:$H$1002,'Nhập liệu'!$E$10:$E$1002,'Vật tư'!$B31,'Nhập liệu'!$C$10:$C$1002,">="&'Thông tin'!$C$12,'Nhập liệu'!$C$10:$C$1002,"<="&'Thông tin'!$C$13) -> 0 | G31: =SUMIFS('Nhập liệu'!$I$10:$I$1002,'Nhập liệu'!$E$10:$E$1002,'Vật tư'!$B31,'Nhập liệu'!$C$10:$C$1002,">="&'Thông tin'!$C$12,'Nhập liệu'!$C$10:$C$1002,"<="&'Thông tin'!$C$13) -> 0 | H31: 0
F32: =SUMIFS('Nhập liệu'!$H$10:$H$1002,'Nhập liệu'!$E$10:$E$1002,'Vật tư'!$B32,'Nhập liệu'!$C$10:$C$1002,">="&'Thông tin'!$C$12,'Nhập liệu'!$C$10:$C$1002,"<="&'Thông tin'!$C$13) -> 0 | G32: =SUMIFS('Nhập liệu'!$I$10:$I$1002,'Nhập liệu'!$E$10:$E$1002,'Vật tư'!$B32,'Nhập liệu'!$C$10:$C$1002,">="&'Thông tin'!$C$12,'Nhập liệu'!$C$10:$C$1002,"<="&'Thông tin'!$C$13) -> 0 | H32: 0
F33: =SUMIFS('Nhập liệu'!$H$10:$H$1002,'Nhập liệu'!$E$10:$E$1002,'Vật tư'!$B33,'Nhập liệu'!$C$10:$C$1002,">="&'Thông tin'!$C$12,'Nhập liệu'!$C$10:$C$1002,"<="&'Thông tin'!$C$13) -> 0 | G33: =SUMIFS('Nhập liệu'!$I$10:$I$1002,'Nhập liệu'!$E$10:$E$1002,'Vật tư'!$B33,'Nhập liệu'!$C$10:$C$1002,">="&'Thông tin'!$C$12,'Nhập liệu'!$C$10:$C$1002,"<="&'Thông tin'!$C$13) -> 0 | H33: 0
F34: =SUMIFS('Nhập liệu'!$H$10:$H$1002,'Nhập liệu'!$E$10:$E$1002,'Vật tư'!$B34,'Nhập liệu'!$C$10:$C$1002,">="&'Thông tin'!$C$12,'Nhập liệu'!$C$10:$C$1002,"<="&'Thông tin'!$C$13) -> 0 | G34: =SUMIFS('Nhập liệu'!$I$10:$I$1002,'Nhập liệu'!$E$10:$E$1002,'Vật tư'!$B34,'Nhập liệu'!$C$10:$C$1002,">="&'Thông tin'!$C$12,'Nhập liệu'!$C$10:$C$1002,"<="&'Thông tin'!$C$13) -> 0 | H34: 0
F35: =SUMIFS('Nhập liệu'!$H$10:$H$1002,'Nhập liệu'!$E$10:$E$1002,'Vật tư'!$B35,'Nhập liệu'!$C$10:$C$1002,">="&'Thông tin'!$C$12,'Nhập liệu'!$C$10:$C$1002,"<="&'Thông tin'!$C$13) -> 0 | G35: =SUMIFS('Nhập liệu'!$I$10:$I$1002,'Nhập liệu'!$E$10:$E$1002,'Vật tư'!$B35,'Nhập liệu'!$C$10:$C$1002,">="&'Thông tin'!$C$12,'Nhập liệu'!$C$10:$C$1002,"<="&'Thông tin'!$C$13) -> 0 | H35: 0
F36: =SUMIFS('Nhập liệu'!$H$10:$H$1002,'Nhập liệu'!$E$10:$E$1002,'Vật tư'!$B36,'Nhập liệu'!$C$10:$C$1002,">="&'Thông tin'!$C$12,'Nhập liệu'!$C$10:$C$1002,"<="&'Thông tin'!$C$13) -> 0 | G36: =SUMIFS('Nhập liệu'!$I$10:$I$1002,'Nhập liệu'!$E$10:$E$1002,'Vật tư'!$B36,'Nhập liệu'!$C$10:$C$1002,">="&'Thông tin'!$C$12,'Nhập liệu'!$C$10:$C$1002,"<="&'Thông tin'!$C$13) -> 0 | H36: 0
F37: =SUMIFS('Nhập liệu'!$H$10:$H$1002,'Nhập liệu'!$E$10:$E$1002,'Vật tư'!$B37,'Nhập liệu'!$C$10:$C$1002,">="&'Thông tin'!$C$12,'Nhập liệu'!$C$10:$C$1002,"<="&'Thông tin'!$C$13) -> 0 | G37: =SUMIFS('Nhập liệu'!$I$10:$I$1002,'Nhập liệu'!$E$10:$E$1002,'Vật tư'!$B37,'Nhập liệu'!$C$10:$C$1002,">="&'Thông tin'!$C$12,'Nhập liệu'!$C$10:$C$1002,"<="&'Thông tin'!$C$13) -> 0 | H37: 0
F38: =SUMIFS('Nhập liệu'!$H$10:$H$1002,'Nhập liệu'!$E$10:$E$1002,'Vật tư'!$B38,'Nhập liệu'!$C$10:$C$1002,">="&'Thông tin'!$C$12,'Nhập liệu'!$C$10:$C$1002,"<="&'Thông tin'!$C$13) -> 0 | G38: =SUMIFS('Nhập liệu'!$I$10:$I$1002,'Nhập liệu'!$E$10:$E$1002,'Vật tư'!$B38,'Nhập liệu'!$C$10:$C$1002,">="&'Thông tin'!$C$12,'Nhập liệu'!$C$10:$C$1002,"<="&'Thông tin'!$C$13) -> 0 | H38: 0
F39: =SUMIFS('Nhập liệu'!$H$10:$H$1002,'Nhập liệu'!$E$10:$E$1002,'Vật tư'!$B39,'Nhập liệu'!$C$10:$C$1002,">="&'Thông tin'!$C$12,'Nhập liệu'!$C$10:$C$1002,"<="&'Thông tin'!$C$13) -> 0 | G39: =SUMIFS('Nhập liệu'!$I$10:$I$1002,'Nhập liệu'!$E$10:$E$1002,'Vật tư'!$B39,'Nhập liệu'!$C$10:$C$1002,">="&'Thông tin'!$C$12,'Nhập liệu'!$C$10:$C$1002,"<="&'Thông tin'!$C$13) -> 0 | H39: 0
A40: =+IF(OR($A39="",$B40=""),"",$A39+1) ->  | F40: =SUMIFS('Nhập liệu'!$H$10:$H$1002,'Nhập liệu'!$E$10:$E$1002,'Vật tư'!$B40,'Nhập liệu'!$C$10:$C$1002,">="&'Thông tin'!$C$12,'Nhập liệu'!$C$10:$C$1002,"<="&'Thông tin'!$C$13) -> 0 | G40: =SUMIFS('Nhập liệu'!$I$10:$I$1002,'Nhập liệu'!$E$10:$E$1002,'Vật tư'!$B40,'Nhập liệu'!$C$10:$C$1002,">="&'Thông tin'!$C$12,'Nhập liệu'!$C$10:$C$1002,"<="&'Thông tin'!$C$13) -> 0 | H40: 0
F41: =SUMIFS('Nhập liệu'!$H$10:$H$1002,'Nhập liệu'!$E$10:$E$1002,'Vật tư'!$B41,'Nhập liệu'!$C$10:$C$1002,">="&'Thông tin'!$C$12,'Nhập liệu'!$C$10:$C$1002,"<="&'Thông tin'!$C$13) -> 0 | G41: =SUMIFS('Nhập liệu'!$I$10:$I$1002,'Nhập liệu'!$E$10:$E$1002,'Vật tư'!$B41,'Nhập liệu'!$C$10:$C$1002,">="&'Thông tin'!$C$12,'Nhập liệu'!$C$10:$C$1002,"<="&'Thông tin'!$C$13) -> 0 | H41: 0
F42: =SUMIFS('Nhập liệu'!$H$10:$H$1002,'Nhập liệu'!$E$10:$E$1002,'Vật tư'!$B42,'Nhập liệu'!$C$10:$C$1002,">="&'Thông tin'!$C$12,'Nhập liệu'!$C$10:$C$1002,"<="&'Thông tin'!$C$13) -> 0 | G42: =SUMIFS('Nhập liệu'!$I$10:$I$1002,'Nhập liệu'!$E$10:$E$1002,'Vật tư'!$B42,'Nhập liệu'!$C$10:$C$1002,">="&'Thông tin'!$C$12,'Nhập liệu'!$C$10:$C$1002,"<="&'Thông tin'!$C$13) -> 0 | H42: 0
F43: =SUMIFS('Nhập liệu'!$H$10:$H$1002,'Nhập liệu'!$E$10:$E$1002,'Vật tư'!$B43,'Nhập liệu'!$C$10:$C$1002,">="&'Thông tin'!$C$12,'Nhập liệu'!$C$10:$C$1002,"<="&'Thông tin'!$C$13) -> 0 | G43: =SUMIFS('Nhập liệu'!$I$10:$I$1002,'Nhập liệu'!$E$10:$E$1002,'Vật tư'!$B43,'Nhập liệu'!$C$10:$C$1002,">="&'Thông tin'!$C$12,'Nhập liệu'!$C$10:$C$1002,"<="&'Thông tin'!$C$13) -> 0 | H43: 0
F44: =SUMIFS('Nhập liệu'!$H$10:$H$1002,'Nhập liệu'!$E$10:$E$1002,'Vật tư'!$B44,'Nhập liệu'!$C$10:$C$1002,">="&'Thông tin'!$C$12,'Nhập liệu'!$C$10:$C$1002,"<="&'Thông tin'!$C$13) -> 0 | G44: =SUMIFS('Nhập liệu'!$I$10:$I$1002,'Nhập liệu'!$E$10:$E$1002,'Vật tư'!$B44,'Nhập liệu'!$C$10:$C$1002,">="&'Thông tin'!$C$12,'Nhập liệu'!$C$10:$C$1002,"<="&'Thông tin'!$C$13) -> 0 | H44: 0
F45: =SUMIFS('Nhập liệu'!$H$10:$H$1002,'Nhập liệu'!$E$10:$E$1002,'Vật tư'!$B45,'Nhập liệu'!$C$10:$C$1002,">="&'Thông tin'!$C$12,'Nhập liệu'!$C$10:$C$1002,"<="&'Thông tin'!$C$13) -> 0 | G45: =SUMIFS('Nhập liệu'!$I$10:$I$1002,'Nhập liệu'!$E$10:$E$1002,'Vật tư'!$B45,'Nhập liệu'!$C$10:$C$1002,">="&'Thông tin'!$C$12,'Nhập liệu'!$C$10:$C$1002,"<="&'Thông tin'!$C$13) -> 0 | H45: 0
F46: =SUMIFS('Nhập liệu'!$H$10:$H$1002,'Nhập liệu'!$E$10:$E$1002,'Vật tư'!$B46,'Nhập liệu'!$C$10:$C$1002,">="&'Thông tin'!$C$12,'Nhập liệu'!$C$10:$C$1002,"<="&'Thông tin'!$C$13) -> 0 | G46: =SUMIFS('Nhập liệu'!$I$10:$I$1002,'Nhập liệu'!$E$10:$E$1002,'Vật tư'!$B46,'Nhập liệu'!$C$10:$C$1002,">="&'Thông tin'!$C$12,'Nhập liệu'!$C$10:$C$1002,"<="&'Thông tin'!$C$13) -> 0 | H46: 0
F47: =SUMIFS('Nhập liệu'!$H$10:$H$1002,'Nhập liệu'!$E$10:$E$1002,'Vật tư'!$B47,'Nhập liệu'!$C$10:$C$1002,">="&'Thông tin'!$C$12,'Nhập liệu'!$C$10:$C$1002,"<="&'Thông tin'!$C$13) -> 0 | G47: =SUMIFS('Nhập liệu'!$I$10:$I$1002,'Nhập liệu'!$E$10:$E$1002,'Vật tư'!$B47,'Nhập liệu'!$C$10:$C$1002,">="&'Thông tin'!$C$12,'Nhập liệu'!$C$10:$C$1002,"<="&'Thông tin'!$C$13) -> 0 | H47: 0
F48: =SUMIFS('Nhập liệu'!$H$10:$H$1002,'Nhập liệu'!$E$10:$E$1002,'Vật tư'!$B48,'Nhập liệu'!$C$10:$C$1002,">="&'Thông tin'!$C$12,'Nhập liệu'!$C$10:$C$1002,"<="&'Thông tin'!$C$13) -> 0 | G48: =SUMIFS('Nhập liệu'!$I$10:$I$1002,'Nhập liệu'!$E$10:$E$1002,'Vật tư'!$B48,'Nhập liệu'!$C$10:$C$1002,">="&'Thông tin'!$C$12,'Nhập liệu'!$C$10:$C$1002,"<="&'Thông tin'!$C$13) -> 0 | H48: 0
F49: =SUMIFS('Nhập liệu'!$H$10:$H$1002,'Nhập liệu'!$E$10:$E$1002,'Vật tư'!$B49,'Nhập liệu'!$C$10:$C$1002,">="&'Thông tin'!$C$12,'Nhập liệu'!$C$10:$C$1002,"<="&'Thông tin'!$C$13) -> 0 | G49: =SUMIFS('Nhập liệu'!$I$10:$I$1002,'Nhập liệu'!$E$10:$E$1002,'Vật tư'!$B49,'Nhập liệu'!$C$10:$C$1002,">="&'Thông tin'!$C$12,'Nhập liệu'!$C$10:$C$1002,"<="&'Thông tin'!$C$13) -> 0 | H49: 0
F50: =SUMIFS('Nhập liệu'!$H$10:$H$1002,'Nhập liệu'!$E$10:$E$1002,'Vật tư'!$B50,'Nhập liệu'!$C$10:$C$1002,">="&'Thông tin'!$C$12,'Nhập liệu'!$C$10:$C$1002,"<="&'Thông tin'!$C$13) -> 0 | G50: =SUMIFS('Nhập liệu'!$I$10:$I$1002,'Nhập liệu'!$E$10:$E$1002,'Vật tư'!$B50,'Nhập liệu'!$C$10:$C$1002,">="&'Thông tin'!$C$12,'Nhập liệu'!$C$10:$C$1002,"<="&'Thông tin'!$C$13) -> 0 | H50: 0
F51: =SUMIFS('Nhập liệu'!$H$10:$H$1002,'Nhập liệu'!$E$10:$E$1002,'Vật tư'!$B51,'Nhập liệu'!$C$10:$C$1002,">="&'Thông tin'!$C$12,'Nhập liệu'!$C$10:$C$1002,"<="&'Thông tin'!$C$13) -> 0 | G51: =SUMIFS('Nhập liệu'!$I$10:$I$1002,'Nhập liệu'!$E$10:$E$1002,'Vật tư'!$B51,'Nhập liệu'!$C$10:$C$1002,">="&'Thông tin'!$C$12,'Nhập liệu'!$C$10:$C$1002,"<="&'Thông tin'!$C$13) -> 0 | H51: 0
F52: =SUMIFS('Nhập liệu'!$H$10:$H$1002,'Nhập liệu'!$E$10:$E$1002,'Vật tư'!$B52,'Nhập liệu'!$C$10:$C$1002,">="&'Thông tin'!$C$12,'Nhập liệu'!$C$10:$C$1002,"<="&'Thông tin'!$C$13) -> 0 | G52: =SUMIFS('Nhập liệu'!$I$10:$I$1002,'Nhập liệu'!$E$10:$E$1002,'Vật tư'!$B52,'Nhập liệu'!$C$10:$C$1002,">="&'Thông tin'!$C$12,'Nhập liệu'!$C$10:$C$1002,"<="&'Thông tin'!$C$13) -> 0 | H52: 0
F53: =SUMIFS('Nhập liệu'!$H$10:$H$1002,'Nhập liệu'!$E$10:$E$1002,'Vật tư'!$B53,'Nhập liệu'!$C$10:$C$1002,">="&'Thông tin'!$C$12,'Nhập liệu'!$C$10:$C$1002,"<="&'Thông tin'!$C$13) -> 0 | G53: =SUMIFS('Nhập liệu'!$I$10:$I$1002,'Nhập liệu'!$E$10:$E$1002,'Vật tư'!$B53,'Nhập liệu'!$C$10:$C$1002,">="&'Thông tin'!$C$12,'Nhập liệu'!$C$10:$C$1002,"<="&'Thông tin'!$C$13) -> 0 | H53: 0
F54: =SUMIFS('Nhập liệu'!$H$10:$H$1002,'Nhập liệu'!$E$10:$E$1002,'Vật tư'!$B54,'Nhập liệu'!$C$10:$C$1002,">="&'Thông tin'!$C$12,'Nhập liệu'!$C$10:$C$1002,"<="&'Thông tin'!$C$13) -> 0 | G54: =SUMIFS('Nhập liệu'!$I$10:$I$1002,'Nhập liệu'!$E$10:$E$1002,'Vật tư'!$B54,'Nhập liệu'!$C$10:$C$1002,">="&'Thông tin'!$C$12,'Nhập liệu'!$C$10:$C$1002,"<="&'Thông tin'!$C$13) -> 0 | H54: 0
F55: =SUMIFS('Nhập liệu'!$H$10:$H$1002,'Nhập liệu'!$E$10:$E$1002,'Vật tư'!$B55,'Nhập liệu'!$C$10:$C$1002,">="&'Thông tin'!$C$12,'Nhập liệu'!$C$10:$C$1002,"<="&'Thông tin'!$C$13) -> 0 | G55: =SUMIFS('Nhập liệu'!$I$10:$I$1002,'Nhập liệu'!$E$10:$E$1002,'Vật tư'!$B55,'Nhập liệu'!$C$10:$C$1002,">="&'Thông tin'!$C$12,'Nhập liệu'!$C$10:$C$1002,"<="&'Thông tin'!$C$13) -> 0 | H55: 0
F56: =SUMIFS('Nhập liệu'!$H$10:$H$1002,'Nhập liệu'!$E$10:$E$1002,'Vật tư'!$B56,'Nhập liệu'!$C$10:$C$1002,">="&'Thông tin'!$C$12,'Nhập liệu'!$C$10:$C$1002,"<="&'Thông tin'!$C$13) -> 0 | G56: =SUMIFS('Nhập liệu'!$I$10:$I$1002,'Nhập liệu'!$E$10:$E$1002,'Vật tư'!$B56,'Nhập liệu'!$C$10:$C$1002,">="&'Thông tin'!$C$12,'Nhập liệu'!$C$10:$C$1002,"<="&'Thông tin'!$C$13) -> 0 | H56: 0
F57: =SUMIFS('Nhập liệu'!$H$10:$H$1002,'Nhập liệu'!$E$10:$E$1002,'Vật tư'!$B57,'Nhập liệu'!$C$10:$C$1002,">="&'Thông tin'!$C$12,'Nhập liệu'!$C$10:$C$1002,"<="&'Thông tin'!$C$13) -> 0 | G57: =SUMIFS('Nhập liệu'!$I$10:$I$1002,'Nhập liệu'!$E$10:$E$1002,'Vật tư'!$B57,'Nhập liệu'!$C$10:$C$1002,">="&'Thông tin'!$C$12,'Nhập liệu'!$C$10:$C$1002,"<="&'Thông tin'!$C$13) -> 0 | H57: 0
F58: =SUMIFS('Nhập liệu'!$H$10:$H$1002,'Nhập liệu'!$E$10:$E$1002,'Vật tư'!$B58,'Nhập liệu'!$C$10:$C$1002,">="&'Thông tin'!$C$12,'Nhập liệu'!$C$10:$C$1002,"<="&'Thông tin'!$C$13) -> 0 | G58: =SUMIFS('Nhập liệu'!$I$10:$I$1002,'Nhập liệu'!$E$10:$E$1002,'Vật tư'!$B58,'Nhập liệu'!$C$10:$C$1002,">="&'Thông tin'!$C$12,'Nhập liệu'!$C$10:$C$1002,"<="&'Thông tin'!$C$13) -> 0 | H58: 0
F59: =SUMIFS('Nhập liệu'!$H$10:$H$1002,'Nhập liệu'!$E$10:$E$1002,'Vật tư'!$B59,'Nhập liệu'!$C$10:$C$1002,">="&'Thông tin'!$C$12,'Nhập liệu'!$C$10:$C$1002,"<="&'Thông tin'!$C$13) -> 0 | G59: =SUMIFS('Nhập liệu'!$I$10:$I$1002,'Nhập liệu'!$E$10:$E$1002,'Vật tư'!$B59,'Nhập liệu'!$C$10:$C$1002,">="&'Thông tin'!$C$12,'Nhập liệu'!$C$10:$C$1002,"<="&'Thông tin'!$C$13) -> 0 | H59: 0
F60: =SUMIFS('Nhập liệu'!$H$10:$H$1002,'Nhập liệu'!$E$10:$E$1002,'Vật tư'!$B60,'Nhập liệu'!$C$10:$C$1002,">="&'Thông tin'!$C$12,'Nhập liệu'!$C$10:$C$1002,"<="&'Thông tin'!$C$13) -> 0 | G60: =SUMIFS('Nhập liệu'!$I$10:$I$1002,'Nhập liệu'!$E$10:$E$1002,'Vật tư'!$B60,'Nhập liệu'!$C$10:$C$1002,">="&'Thông tin'!$C$12,'Nhập liệu'!$C$10:$C$1002,"<="&'Thông tin'!$C$13) -> 0 | H60: 0
F61: =SUMIFS('Nhập liệu'!$H$10:$H$1002,'Nhập liệu'!$E$10:$E$1002,'Vật tư'!$B61,'Nhập liệu'!$C$10:$C$1002,">="&'Thông tin'!$C$12,'Nhập liệu'!$C$10:$C$1002,"<="&'Thông tin'!$C$13) -> 0 | G61: =SUMIFS('Nhập liệu'!$I$10:$I$1002,'Nhập liệu'!$E$10:$E$1002,'Vật tư'!$B61,'Nhập liệu'!$C$10:$C$1002,">="&'Thông tin'!$C$12,'Nhập liệu'!$C$10:$C$1002,"<="&'Thông tin'!$C$13) -> 0 | H61: 0
F62: =SUMIFS('Nhập liệu'!$H$10:$H$1002,'Nhập liệu'!$E$10:$E$1002,'Vật tư'!$B62,'Nhập liệu'!$C$10:$C$1002,">="&'Thông tin'!$C$12,'Nhập liệu'!$C$10:$C$1002,"<="&'Thông tin'!$C$13) -> 0 | G62: =SUMIFS('Nhập liệu'!$I$10:$I$1002,'Nhập liệu'!$E$10:$E$1002,'Vật tư'!$B62,'Nhập liệu'!$C$10:$C$1002,">="&'Thông tin'!$C$12,'Nhập liệu'!$C$10:$C$1002,"<="&'Thông tin'!$C$13) -> 0 | H62: 0
F63: =SUMIFS('Nhập liệu'!$H$10:$H$1002,'Nhập liệu'!$E$10:$E$1002,'Vật tư'!$B63,'Nhập liệu'!$C$10:$C$1002,">="&'Thông tin'!$C$12,'Nhập liệu'!$C$10:$C$1002,"<="&'Thông tin'!$C$13) -> 0 | G63: =SUMIFS('Nhập liệu'!$I$10:$I$1002,'Nhập liệu'!$E$10:$E$1002,'Vật tư'!$B63,'Nhập liệu'!$C$10:$C$1002,">="&'Thông tin'!$C$12,'Nhập liệu'!$C$10:$C$1002,"<="&'Thông tin'!$C$13) -> 0 | H63: 0
F64: =SUMIFS('Nhập liệu'!$H$10:$H$1002,'Nhập liệu'!$E$10:$E$1002,'Vật tư'!$B64,'Nhập liệu'!$C$10:$C$1002,">="&'Thông tin'!$C$12,'Nhập liệu'!$C$10:$C$1002,"<="&'Thông tin'!$C$13) -> 0 | G64: =SUMIFS('Nhập liệu'!$I$10:$I$1002,'Nhập liệu'!$E$10:$E$1002,'Vật tư'!$B64,'Nhập liệu'!$C$10:$C$1002,">="&'Thông tin'!$C$12,'Nhập liệu'!$C$10:$C$1002,"<="&'Thông tin'!$C$13) -> 0 | H64: 0
F65: =SUMIFS('Nhập liệu'!$H$10:$H$1002,'Nhập liệu'!$E$10:$E$1002,'Vật tư'!$B65,'Nhập liệu'!$C$10:$C$1002,">="&'Thông tin'!$C$12,'Nhập liệu'!$C$10:$C$1002,"<="&'Thông tin'!$C$13) -> 0 | G65: =SUMIFS('Nhập liệu'!$I$10:$I$1002,'Nhập liệu'!$E$10:$E$1002,'Vật tư'!$B65,'Nhập liệu'!$C$10:$C$1002,">="&'Thông tin'!$C$12,'Nhập liệu'!$C$10:$C$1002,"<="&'Thông tin'!$C$13) -> 0 | H65: 0
F66: =SUMIFS('Nhập liệu'!$H$10:$H$1002,'Nhập liệu'!$E$10:$E$1002,'Vật tư'!$B66,'Nhập liệu'!$C$10:$C$1002,">="&'Thông tin'!$C$12,'Nhập liệu'!$C$10:$C$1002,"<="&'Thông tin'!$C$13) -> 0 | G66: =SUMIFS('Nhập liệu'!$I$10:$I$1002,'Nhập liệu'!$E$10:$E$1002,'Vật tư'!$B66,'Nhập liệu'!$C$10:$C$1002,">="&'Thông tin'!$C$12,'Nhập liệu'!$C$10:$C$1002,"<="&'Thông tin'!$C$13) -> 0 | H66: 0
F67: =SUMIFS('Nhập liệu'!$H$10:$H$1002,'Nhập liệu'!$E$10:$E$1002,'Vật tư'!$B67,'Nhập liệu'!$C$10:$C$1002,">="&'Thông tin'!$C$12,'Nhập liệu'!$C$10:$C$1002,"<="&'Thông tin'!$C$13) -> 0 | G67: =SUMIFS('Nhập liệu'!$I$10:$I$1002,'Nhập liệu'!$E$10:$E$1002,'Vật tư'!$B67,'Nhập liệu'!$C$10:$C$1002,">="&'Thông tin'!$C$12,'Nhập liệu'!$C$10:$C$1002,"<="&'Thông tin'!$C$13) -> 0 | H67: 0
F68: =SUMIFS('Nhập liệu'!$H$10:$H$1002,'Nhập liệu'!$E$10:$E$1002,'Vật tư'!$B68,'Nhập liệu'!$C$10:$C$1002,">="&'Thông tin'!$C$12,'Nhập liệu'!$C$10:$C$1002,"<="&'Thông tin'!$C$13) -> 0 | G68: =SUMIFS('Nhập liệu'!$I$10:$I$1002,'Nhập liệu'!$E$10:$E$1002,'Vật tư'!$B68,'Nhập liệu'!$C$10:$C$1002,">="&'Thông tin'!$C$12,'Nhập liệu'!$C$10:$C$1002,"<="&'Thông tin'!$C$13) -> 0 | H68: 0
F69: =SUMIFS('Nhập liệu'!$H$10:$H$1002,'Nhập liệu'!$E$10:$E$1002,'Vật tư'!$B69,'Nhập liệu'!$C$10:$C$1002,">="&'Thông tin'!$C$12,'Nhập liệu'!$C$10:$C$1002,"<="&'Thông tin'!$C$13) -> 0 | G69: =SUMIFS('Nhập liệu'!$I$10:$I$1002,'Nhập liệu'!$E$10:$E$1002,'Vật tư'!$B69,'Nhập liệu'!$C$10:$C$1002,">="&'Thông tin'!$C$12,'Nhập liệu'!$C$10:$C$1002,"<="&'Thông tin'!$C$13) -> 0 | H69: 0
F70: =SUMIFS('Nhập liệu'!$H$10:$H$1002,'Nhập liệu'!$E$10:$E$1002,'Vật tư'!$B70,'Nhập liệu'!$C$10:$C$1002,">="&'Thông tin'!$C$12,'Nhập liệu'!$C$10:$C$1002,"<="&'Thông tin'!$C$13) -> 0 | G70: =SUMIFS('Nhập liệu'!$I$10:$I$1002,'Nhập liệu'!$E$10:$E$1002,'Vật tư'!$B70,'Nhập liệu'!$C$10:$C$1002,">="&'Thông tin'!$C$12,'Nhập liệu'!$C$10:$C$1002,"<="&'Thông tin'!$C$13) -> 0 | H70: 0
F71: =SUMIFS('Nhập liệu'!$H$10:$H$1002,'Nhập liệu'!$E$10:$E$1002,'Vật tư'!$B71,'Nhập liệu'!$C$10:$C$1002,">="&'Thông tin'!$C$12,'Nhập liệu'!$C$10:$C$1002,"<="&'Thông tin'!$C$13) -> 0 | G71: =SUMIFS('Nhập liệu'!$I$10:$I$1002,'Nhập liệu'!$E$10:$E$1002,'Vật tư'!$B71,'Nhập liệu'!$C$10:$C$1002,">="&'Thông tin'!$C$12,'Nhập liệu'!$C$10:$C$1002,"<="&'Thông tin'!$C$13) -> 0 | H71: 0
F72: =SUMIFS('Nhập liệu'!$H$10:$H$1002,'Nhập liệu'!$E$10:$E$1002,'Vật tư'!$B72,'Nhập liệu'!$C$10:$C$1002,">="&'Thông tin'!$C$12,'Nhập liệu'!$C$10:$C$1002,"<="&'Thông tin'!$C$13) -> 0 | G72: =SUMIFS('Nhập liệu'!$I$10:$I$1002,'Nhập liệu'!$E$10:$E$1002,'Vật tư'!$B72,'Nhập liệu'!$C$10:$C$1002,">="&'Thông tin'!$C$12,'Nhập liệu'!$C$10:$C$1002,"<="&'Thông tin'!$C$13) -> 0 | H72: 0
F73: =SUMIFS('Nhập liệu'!$H$10:$H$1002,'Nhập liệu'!$E$10:$E$1002,'Vật tư'!$B73,'Nhập liệu'!$C$10:$C$1002,">="&'Thông tin'!$C$12,'Nhập liệu'!$C$10:$C$1002,"<="&'Thông tin'!$C$13) -> 0 | G73: =SUMIFS('Nhập liệu'!$I$10:$I$1002,'Nhập liệu'!$E$10:$E$1002,'Vật tư'!$B73,'Nhập liệu'!$C$10:$C$1002,">="&'Thông tin'!$C$12,'Nhập liệu'!$C$10:$C$1002,"<="&'Thông tin'!$C$13) -> 0 | H73: 0
F74: =SUMIFS('Nhập liệu'!$H$10:$H$1002,'Nhập liệu'!$E$10:$E$1002,'Vật tư'!$B74,'Nhập liệu'!$C$10:$C$1002,">="&'Thông tin'!$C$12,'Nhập liệu'!$C$10:$C$1002,"<="&'Thông tin'!$C$13) -> 0 | G74: =SUMIFS('Nhập liệu'!$I$10:$I$1002,'Nhập liệu'!$E$10:$E$1002,'Vật tư'!$B74,'Nhập liệu'!$C$10:$C$1002,">="&'Thông tin'!$C$12,'Nhập liệu'!$C$10:$C$1002,"<="&'Thông tin'!$C$13) -> 0 | H74: =F74-G74 -> 0
A75: =+IF(OR($A74="",$B75=""),"",$A74+1) ->  | F75: =SUMIFS('Nhập liệu'!$H$10:$H$1002,'Nhập liệu'!$E$10:$E$1002,'Vật tư'!$B75,'Nhập liệu'!$C$10:$C$1002,">="&'Thông tin'!$C$12,'Nhập liệu'!$C$10:$C$1002,"<="&'Thông tin'!$C$13) -> 0 | G75: =SUMIFS('Nhập liệu'!$I$10:$I$1002,'Nhập liệu'!$E$10:$E$1002,'Vật tư'!$B75,'Nhập liệu'!$C$10:$C$1002,">="&'Thông tin'!$C$12,'Nhập liệu'!$C$10:$C$1002,"<="&'Thông tin'!$C$13) -> 0 | H75: 0
F76: =SUMIFS('Nhập liệu'!$H$10:$H$1002,'Nhập liệu'!$E$10:$E$1002,'Vật tư'!$B76,'Nhập liệu'!$C$10:$C$1002,">="&'Thông tin'!$C$12,'Nhập liệu'!$C$10:$C$1002,"<="&'Thông tin'!$C$13) -> 0 | G76: =SUMIFS('Nhập liệu'!$I$10:$I$1002,'Nhập liệu'!$E$10:$E$1002,'Vật tư'!$B76,'Nhập liệu'!$C$10:$C$1002,">="&'Thông tin'!$C$12,'Nhập liệu'!$C$10:$C$1002,"<="&'Thông tin'!$C$13) -> 0 | H76: 0
F77: =SUMIFS('Nhập liệu'!$H$10:$H$1002,'Nhập liệu'!$E$10:$E$1002,'Vật tư'!$B77,'Nhập liệu'!$C$10:$C$1002,">="&'Thông tin'!$C$12,'Nhập liệu'!$C$10:$C$1002,"<="&'Thông tin'!$C$13) -> 0 | G77: =SUMIFS('Nhập liệu'!$I$10:$I$1002,'Nhập liệu'!$E$10:$E$1002,'Vật tư'!$B77,'Nhập liệu'!$C$10:$C$1002,">="&'Thông tin'!$C$12,'Nhập liệu'!$C$10:$C$1002,"<="&'Thông tin'!$C$13) -> 0 | H77: 0
F78: =SUMIFS('Nhập liệu'!$H$10:$H$1002,'Nhập liệu'!$E$10:$E$1002,'Vật tư'!$B78,'Nhập liệu'!$C$10:$C$1002,">="&'Thông tin'!$C$12,'Nhập liệu'!$C$10:$C$1002,"<="&'Thông tin'!$C$13) -> 0 | G78: =SUMIFS('Nhập liệu'!$I$10:$I$1002,'Nhập liệu'!$E$10:$E$1002,'Vật tư'!$B78,'Nhập liệu'!$C$10:$C$1002,">="&'Thông tin'!$C$12,'Nhập liệu'!$C$10:$C$1002,"<="&'Thông tin'!$C$13) -> 0 | H78: 0
F79: =SUMIFS('Nhập liệu'!$H$10:$H$1002,'Nhập liệu'!$E$10:$E$1002,'Vật tư'!$B79,'Nhập liệu'!$C$10:$C$1002,">="&'Thông tin'!$C$12,'Nhập liệu'!$C$10:$C$1002,"<="&'Thông tin'!$C$13) -> 0 | G79: =SUMIFS('Nhập liệu'!$I$10:$I$1002,'Nhập liệu'!$E$10:$E$1002,'Vật tư'!$B79,'Nhập liệu'!$C$10:$C$1002,">="&'Thông tin'!$C$12,'Nhập liệu'!$C$10:$C$1002,"<="&'Thông tin'!$C$13) -> 0 | H79: 0
F80: =SUMIFS('Nhập liệu'!$H$10:$H$1002,'Nhập liệu'!$E$10:$E$1002,'Vật tư'!$B80,'Nhập liệu'!$C$10:$C$1002,">="&'Thông tin'!$C$12,'Nhập liệu'!$C$10:$C$1002,"<="&'Thông tin'!$C$13) -> 0 | G80: =SUMIFS('Nhập liệu'!$I$10:$I$1002,'Nhập liệu'!$E$10:$E$1002,'Vật tư'!$B80,'Nhập liệu'!$C$10:$C$1002,">="&'Thông tin'!$C$12,'Nhập liệu'!$C$10:$C$1002,"<="&'Thông tin'!$C$13) -> 0 | H80: 0
F81: =SUMIFS('Nhập liệu'!$H$10:$H$1002,'Nhập liệu'!$E$10:$E$1002,'Vật tư'!$B81,'Nhập liệu'!$C$10:$C$1002,">="&'Thông tin'!$C$12,'Nhập liệu'!$C$10:$C$1002,"<="&'Thông tin'!$C$13) -> 0 | G81: =SUMIFS('Nhập liệu'!$I$10:$I$1002,'Nhập liệu'!$E$10:$E$1002,'Vật tư'!$B81,'Nhập liệu'!$C$10:$C$1002,">="&'Thông tin'!$C$12,'Nhập liệu'!$C$10:$C$1002,"<="&'Thông tin'!$C$13) -> 0 | H81: 0
F82: =SUMIFS('Nhập liệu'!$H$10:$H$1002,'Nhập liệu'!$E$10:$E$1002,'Vật tư'!$B82,'Nhập liệu'!$C$10:$C$1002,">="&'Thông tin'!$C$12,'Nhập liệu'!$C$10:$C$1002,"<="&'Thông tin'!$C$13) -> 0 | G82: =SUMIFS('Nhập liệu'!$I$10:$I$1002,'Nhập liệu'!$E$10:$E$1002,'Vật tư'!$B82,'Nhập liệu'!$C$10:$C$1002,">="&'Thông tin'!$C$12,'Nhập liệu'!$C$10:$C$1002,"<="&'Thông tin'!$C$13) -> 0 | H82: 0
F83: =SUMIFS('Nhập liệu'!$H$10:$H$1002,'Nhập liệu'!$E$10:$E$1002,'Vật tư'!$B83,'Nhập liệu'!$C$10:$C$1002,">="&'Thông tin'!$C$12,'Nhập liệu'!$C$10:$C$1002,"<="&'Thông tin'!$C$13) -> 0 | G83: =SUMIFS('Nhập liệu'!$I$10:$I$1002,'Nhập liệu'!$E$10:$E$1002,'Vật tư'!$B83,'Nhập liệu'!$C$10:$C$1002,">="&'Thông tin'!$C$12,'Nhập liệu'!$C$10:$C$1002,"<="&'Thông tin'!$C$13) -> 0 | H83: 0
F84: =SUMIFS('Nhập liệu'!$H$10:$H$1002,'Nhập liệu'!$E$10:$E$1002,'Vật tư'!$B84,'Nhập liệu'!$C$10:$C$1002,">="&'Thông tin'!$C$12,'Nhập liệu'!$C$10:$C$1002,"<="&'Thông tin'!$C$13) -> 0 | G84: =SUMIFS('Nhập liệu'!$I$10:$I$1002,'Nhập liệu'!$E$10:$E$1002,'Vật tư'!$B84,'Nhập liệu'!$C$10:$C$1002,">="&'Thông tin'!$C$12,'Nhập liệu'!$C$10:$C$1002,"<="&'Thông tin'!$C$13) -> 0 | H84: 0
F85: =SUMIFS('Nhập liệu'!$H$10:$H$1002,'Nhập liệu'!$E$10:$E$1002,'Vật tư'!$B85,'Nhập liệu'!$C$10:$C$1002,">="&'Thông tin'!$C$12,'Nhập liệu'!$C$10:$C$1002,"<="&'Thông tin'!$C$13) -> 0 | G85: =SUMIFS('Nhập liệu'!$I$10:$I$1002,'Nhập liệu'!$E$10:$E$1002,'Vật tư'!$B85,'Nhập liệu'!$C$10:$C$1002,">="&'Thông tin'!$C$12,'Nhập liệu'!$C$10:$C$1002,"<="&'Thông tin'!$C$13) -> 0 | H85: 0
F86: =SUMIFS('Nhập liệu'!$H$10:$H$1002,'Nhập liệu'!$E$10:$E$1002,'Vật tư'!$B86,'Nhập liệu'!$C$10:$C$1002,">="&'Thông tin'!$C$12,'Nhập liệu'!$C$10:$C$1002,"<="&'Thông tin'!$C$13) -> 0 | G86: =SUMIFS('Nhập liệu'!$I$10:$I$1002,'Nhập liệu'!$E$10:$E$1002,'Vật tư'!$B86,'Nhập liệu'!$C$10:$C$1002,">="&'Thông tin'!$C$12,'Nhập liệu'!$C$10:$C$1002,"<="&'Thông tin'!$C$13) -> 0 | H86: 0
F87: =SUMIFS('Nhập liệu'!$H$10:$H$1002,'Nhập liệu'!$E$10:$E$1002,'Vật tư'!$B87,'Nhập liệu'!$C$10:$C$1002,">="&'Thông tin'!$C$12,'Nhập liệu'!$C$10:$C$1002,"<="&'Thông tin'!$C$13) -> 0 | G87: =SUMIFS('Nhập liệu'!$I$10:$I$1002,'Nhập liệu'!$E$10:$E$1002,'Vật tư'!$B87,'Nhập liệu'!$C$10:$C$1002,">="&'Thông tin'!$C$12,'Nhập liệu'!$C$10:$C$1002,"<="&'Thông tin'!$C$13) -> 0 | H87: 0
F88: =SUMIFS('Nhập liệu'!$H$10:$H$1002,'Nhập liệu'!$E$10:$E$1002,'Vật tư'!$B88,'Nhập liệu'!$C$10:$C$1002,">="&'Thông tin'!$C$12,'Nhập liệu'!$C$10:$C$1002,"<="&'Thông tin'!$C$13) -> 0 | G88: =SUMIFS('Nhập liệu'!$I$10:$I$1002,'Nhập liệu'!$E$10:$E$1002,'Vật tư'!$B88,'Nhập liệu'!$C$10:$C$1002,">="&'Thông tin'!$C$12,'Nhập liệu'!$C$10:$C$1002,"<="&'Thông tin'!$C$13) -> 0 | H88: 0
F89: =SUMIFS('Nhập liệu'!$H$10:$H$1002,'Nhập liệu'!$E$10:$E$1002,'Vật tư'!$B89,'Nhập liệu'!$C$10:$C$1002,">="&'Thông tin'!$C$12,'Nhập liệu'!$C$10:$C$1002,"<="&'Thông tin'!$C$13) -> 0 | G89: =SUMIFS('Nhập liệu'!$I$10:$I$1002,'Nhập liệu'!$E$10:$E$1002,'Vật tư'!$B89,'Nhập liệu'!$C$10:$C$1002,">="&'Thông tin'!$C$12,'Nhập liệu'!$C$10:$C$1002,"<="&'Thông tin'!$C$13) -> 0 | H89: 0
F90: =SUMIFS('Nhập liệu'!$H$10:$H$1002,'Nhập liệu'!$E$10:$E$1002,'Vật tư'!$B90,'Nhập liệu'!$C$10:$C$1002,">="&'Thông tin'!$C$12,'Nhập liệu'!$C$10:$C$1002,"<="&'Thông tin'!$C$13) -> 0 | G90: =SUMIFS('Nhập liệu'!$I$10:$I$1002,'Nhập liệu'!$E$10:$E$1002,'Vật tư'!$B90,'Nhập liệu'!$C$10:$C$1002,">="&'Thông tin'!$C$12,'Nhập liệu'!$C$10:$C$1002,"<="&'Thông tin'!$C$13) -> 0 | H90: 0
F91: =SUMIFS('Nhập liệu'!$H$10:$H$1002,'Nhập liệu'!$E$10:$E$1002,'Vật tư'!$B91,'Nhập liệu'!$C$10:$C$1002,">="&'Thông tin'!$C$12,'Nhập liệu'!$C$10:$C$1002,"<="&'Thông tin'!$C$13) -> 0 | G91: =SUMIFS('Nhập liệu'!$I$10:$I$1002,'Nhập liệu'!$E$10:$E$1002,'Vật tư'!$B91,'Nhập liệu'!$C$10:$C$1002,">="&'Thông tin'!$C$12,'Nhập liệu'!$C$10:$C$1002,"<="&'Thông tin'!$C$13) -> 0 | H91: 0
F92: =SUMIFS('Nhập liệu'!$H$10:$H$1002,'Nhập liệu'!$E$10:$E$1002,'Vật tư'!$B92,'Nhập liệu'!$C$10:$C$1002,">="&'Thông tin'!$C$12,'Nhập liệu'!$C$10:$C$1002,"<="&'Thông tin'!$C$13) -> 0 | G92: =SUMIFS('Nhập liệu'!$I$10:$I$1002,'Nhập liệu'!$E$10:$E$1002,'Vật tư'!$B92,'Nhập liệu'!$C$10:$C$1002,">="&'Thông tin'!$C$12,'Nhập liệu'!$C$10:$C$1002,"<="&'Thông tin'!$C$13) -> 0 | H92: 0
F93: =SUMIFS('Nhập liệu'!$H$10:$H$1002,'Nhập liệu'!$E$10:$E$1002,'Vật tư'!$B93,'Nhập liệu'!$C$10:$C$1002,">="&'Thông tin'!$C$12,'Nhập liệu'!$C$10:$C$1002,"<="&'Thông tin'!$C$13) -> 0 | G93: =SUMIFS('Nhập liệu'!$I$10:$I$1002,'Nhập liệu'!$E$10:$E$1002,'Vật tư'!$B93,'Nhập liệu'!$C$10:$C$1002,">="&'Thông tin'!$C$12,'Nhập liệu'!$C$10:$C$1002,"<="&'Thông tin'!$C$13) -> 0 | H93: 0
F94: =SUMIFS('Nhập liệu'!$H$10:$H$1002,'Nhập liệu'!$E$10:$E$1002,'Vật tư'!$B94,'Nhập liệu'!$C$10:$C$1002,">="&'Thông tin'!$C$12,'Nhập liệu'!$C$10:$C$1002,"<="&'Thông tin'!$C$13) -> 0 | G94: =SUMIFS('Nhập liệu'!$I$10:$I$1002,'Nhập liệu'!$E$10:$E$1002,'Vật tư'!$B94,'Nhập liệu'!$C$10:$C$1002,">="&'Thông tin'!$C$12,'Nhập liệu'!$C$10:$C$1002,"<="&'Thông tin'!$C$13) -> 0 | H94: 0
F95: =SUMIFS('Nhập liệu'!$H$10:$H$1002,'Nhập liệu'!$E$10:$E$1002,'Vật tư'!$B95,'Nhập liệu'!$C$10:$C$1002,">="&'Thông tin'!$C$12,'Nhập liệu'!$C$10:$C$1002,"<="&'Thông tin'!$C$13) -> 0 | G95: =SUMIFS('Nhập liệu'!$I$10:$I$1002,'Nhập liệu'!$E$10:$E$1002,'Vật tư'!$B95,'Nhập liệu'!$C$10:$C$1002,">="&'Thông tin'!$C$12,'Nhập liệu'!$C$10:$C$1002,"<="&'Thông tin'!$C$13) -> 0 | H95: 0
F96: =SUMIFS('Nhập liệu'!$H$10:$H$1002,'Nhập liệu'!$E$10:$E$1002,'Vật tư'!$B96,'Nhập liệu'!$C$10:$C$1002,">="&'Thông tin'!$C$12,'Nhập liệu'!$C$10:$C$1002,"<="&'Thông tin'!$C$13) -> 0 | G96: =SUMIFS('Nhập liệu'!$I$10:$I$1002,'Nhập liệu'!$E$10:$E$1002,'Vật tư'!$B96,'Nhập liệu'!$C$10:$C$1002,">="&'Thông tin'!$C$12,'Nhập liệu'!$C$10:$C$1002,"<="&'Thông tin'!$C$13) -> 0 | H96: 0
F97: =SUMIFS('Nhập liệu'!$H$10:$H$1002,'Nhập liệu'!$E$10:$E$1002,'Vật tư'!$B97,'Nhập liệu'!$C$10:$C$1002,">="&'Thông tin'!$C$12,'Nhập liệu'!$C$10:$C$1002,"<="&'Thông tin'!$C$13) -> 0 | G97: =SUMIFS('Nhập liệu'!$I$10:$I$1002,'Nhập liệu'!$E$10:$E$1002,'Vật tư'!$B97,'Nhập liệu'!$C$10:$C$1002,">="&'Thông tin'!$C$12,'Nhập liệu'!$C$10:$C$1002,"<="&'Thông tin'!$C$13) -> 0 | H97: 0
F98: =SUMIFS('Nhập liệu'!$H$10:$H$1002,'Nhập liệu'!$E$10:$E$1002,'Vật tư'!$B98,'Nhập liệu'!$C$10:$C$1002,">="&'Thông tin'!$C$12,'Nhập liệu'!$C$10:$C$1002,"<="&'Thông tin'!$C$13) -> 0 | G98: =SUMIFS('Nhập liệu'!$I$10:$I$1002,'Nhập liệu'!$E$10:$E$1002,'Vật tư'!$B98,'Nhập liệu'!$C$10:$C$1002,">="&'Thông tin'!$C$12,'Nhập liệu'!$C$10:$C$1002,"<="&'Thông tin'!$C$13) -> 0 | H98: 0
F99: =SUMIFS('Nhập liệu'!$H$10:$H$1002,'Nhập liệu'!$E$10:$E$1002,'Vật tư'!$B99,'Nhập liệu'!$C$10:$C$1002,">="&'Thông tin'!$C$12,'Nhập liệu'!$C$10:$C$1002,"<="&'Thông tin'!$C$13) -> 0 | G99: =SUMIFS('Nhập liệu'!$I$10:$I$1002,'Nhập liệu'!$E$10:$E$1002,'Vật tư'!$B99,'Nhập liệu'!$C$10:$C$1002,">="&'Thông tin'!$C$12,'Nhập liệu'!$C$10:$C$1002,"<="&'Thông tin'!$C$13) -> 0 | H99: 0
F100: =SUMIFS('Nhập liệu'!$H$10:$H$1002,'Nhập liệu'!$E$10:$E$1002,'Vật tư'!$B100,'Nhập liệu'!$C$10:$C$1002,">="&'Thông tin'!$C$12,'Nhập liệu'!$C$10:$C$1002,"<="&'Thông tin'!$C$13) -> 0 | G100: =SUMIFS('Nhập liệu'!$I$10:$I$1002,'Nhập liệu'!$E$10:$E$1002,'Vật tư'!$B100,'Nhập liệu'!$C$10:$C$1002,">="&'Thông tin'!$C$12,'Nhập liệu'!$C$10:$C$1002,"<="&'Thông tin'!$C$13) -> 0 | H100: 0
F101: =SUMIFS('Nhập liệu'!$H$10:$H$1002,'Nhập liệu'!$E$10:$E$1002,'Vật tư'!$B101,'Nhập liệu'!$C$10:$C$1002,">="&'Thông tin'!$C$12,'Nhập liệu'!$C$10:$C$1002,"<="&'Thông tin'!$C$13) -> 0 | G101: =SUMIFS('Nhập liệu'!$I$10:$I$1002,'Nhập liệu'!$E$10:$E$1002,'Vật tư'!$B101,'Nhập liệu'!$C$10:$C$1002,">="&'Thông tin'!$C$12,'Nhập liệu'!$C$10:$C$1002,"<="&'Thông tin'!$C$13) -> 0 | H101: 0
F102: =SUMIFS('Nhập liệu'!$H$10:$H$1002,'Nhập liệu'!$E$10:$E$1002,'Vật tư'!$B102,'Nhập liệu'!$C$10:$C$1002,">="&'Thông tin'!$C$12,'Nhập liệu'!$C$10:$C$1002,"<="&'Thông tin'!$C$13) -> 0 | G102: =SUMIFS('Nhập liệu'!$I$10:$I$1002,'Nhập liệu'!$E$10:$E$1002,'Vật tư'!$B102,'Nhập liệu'!$C$10:$C$1002,">="&'Thông tin'!$C$12,'Nhập liệu'!$C$10:$C$1002,"<="&'Thông tin'!$C$13) -> 0 | H102: 0
F103: =SUMIFS('Nhập liệu'!$H$10:$H$1002,'Nhập liệu'!$E$10:$E$1002,'Vật tư'!$B103,'Nhập liệu'!$C$10:$C$1002,">="&'Thông tin'!$C$12,'Nhập liệu'!$C$10:$C$1002,"<="&'Thông tin'!$C$13) -> 0 | G103: =SUMIFS('Nhập liệu'!$I$10:$I$1002,'Nhập liệu'!$E$10:$E$1002,'Vật tư'!$B103,'Nhập liệu'!$C$10:$C$1002,">="&'Thông tin'!$C$12,'Nhập liệu'!$C$10:$C$1002,"<="&'Thông tin'!$C$13) -> 0 | H103: 0
F104: =SUMIFS('Nhập liệu'!$H$10:$H$1002,'Nhập liệu'!$E$10:$E$1002,'Vật tư'!$B104,'Nhập liệu'!$C$10:$C$1002,">="&'Thông tin'!$C$12,'Nhập liệu'!$C$10:$C$1002,"<="&'Thông tin'!$C$13) -> 0 | G104: =SUMIFS('Nhập liệu'!$I$10:$I$1002,'Nhập liệu'!$E$10:$E$1002,'Vật tư'!$B104,'Nhập liệu'!$C$10:$C$1002,">="&'Thông tin'!$C$12,'Nhập liệu'!$C$10:$C$1002,"<="&'Thông tin'!$C$13) -> 0 | H104: 0
F105: =SUMIFS('Nhập liệu'!$H$10:$H$1002,'Nhập liệu'!$E$10:$E$1002,'Vật tư'!$B105,'Nhập liệu'!$C$10:$C$1002,">="&'Thông tin'!$C$12,'Nhập liệu'!$C$10:$C$1002,"<="&'Thông tin'!$C$13) -> 0 | G105: =SUMIFS('Nhập liệu'!$I$10:$I$1002,'Nhập liệu'!$E$10:$E$1002,'Vật tư'!$B105,'Nhập liệu'!$C$10:$C$1002,">="&'Thông tin'!$C$12,'Nhập liệu'!$C$10:$C$1002,"<="&'Thông tin'!$C$13) -> 0 | H105: 0
F106: =SUMIFS('Nhập liệu'!$H$10:$H$1002,'Nhập liệu'!$E$10:$E$1002,'Vật tư'!$B106,'Nhập liệu'!$C$10:$C$1002,">="&'Thông tin'!$C$12,'Nhập liệu'!$C$10:$C$1002,"<="&'Thông tin'!$C$13) -> 0 | G106: =SUMIFS('Nhập liệu'!$I$10:$I$1002,'Nhập liệu'!$E$10:$E$1002,'Vật tư'!$B106,'Nhập liệu'!$C$10:$C$1002,">="&'Thông tin'!$C$12,'Nhập liệu'!$C$10:$C$1002,"<="&'Thông tin'!$C$13) -> 0 | H106: 0
F107: =SUMIFS('Nhập liệu'!$H$10:$H$1002,'Nhập liệu'!$E$10:$E$1002,'Vật tư'!$B107,'Nhập liệu'!$C$10:$C$1002,">="&'Thông tin'!$C$12,'Nhập liệu'!$C$10:$C$1002,"<="&'Thông tin'!$C$13) -> 0 | G107: =SUMIFS('Nhập liệu'!$I$10:$I$1002,'Nhập liệu'!$E$10:$E$1002,'Vật tư'!$B107,'Nhập liệu'!$C$10:$C$1002,">="&'Thông tin'!$C$12,'Nhập liệu'!$C$10:$C$1002,"<="&'Thông tin'!$C$13) -> 0 | H107: 0
F108: =SUMIFS('Nhập liệu'!$H$10:$H$1002,'Nhập liệu'!$E$10:$E$1002,'Vật tư'!$B108,'Nhập liệu'!$C$10:$C$1002,">="&'Thông tin'!$C$12,'Nhập liệu'!$C$10:$C$1002,"<="&'Thông tin'!$C$13) -> 0 | G108: =SUMIFS('Nhập liệu'!$I$10:$I$1002,'Nhập liệu'!$E$10:$E$1002,'Vật tư'!$B108,'Nhập liệu'!$C$10:$C$1002,">="&'Thông tin'!$C$12,'Nhập liệu'!$C$10:$C$1002,"<="&'Thông tin'!$C$13) -> 0 | H108: 0
F109: =SUMIFS('Nhập liệu'!$H$10:$H$1002,'Nhập liệu'!$E$10:$E$1002,'Vật tư'!$B109,'Nhập liệu'!$C$10:$C$1002,">="&'Thông tin'!$C$12,'Nhập liệu'!$C$10:$C$1002,"<="&'Thông tin'!$C$13) -> 0 | G109: =SUMIFS('Nhập liệu'!$I$10:$I$1002,'Nhập liệu'!$E$10:$E$1002,'Vật tư'!$B109,'Nhập liệu'!$C$10:$C$1002,">="&'Thông tin'!$C$12,'Nhập liệu'!$C$10:$C$1002,"<="&'Thông tin'!$C$13) -> 0 | H109: 0
F110: =SUMIFS('Nhập liệu'!$H$10:$H$1002,'Nhập liệu'!$E$10:$E$1002,'Vật tư'!$B110,'Nhập liệu'!$C$10:$C$1002,">="&'Thông tin'!$C$12,'Nhập liệu'!$C$10:$C$1002,"<="&'Thông tin'!$C$13) -> 0 | G110: =SUMIFS('Nhập liệu'!$I$10:$I$1002,'Nhập liệu'!$E$10:$E$1002,'Vật tư'!$B110,'Nhập liệu'!$C$10:$C$1002,">="&'Thông tin'!$C$12,'Nhập liệu'!$C$10:$C$1002,"<="&'Thông tin'!$C$13) -> 0 | H110: 0
F111: =SUMIFS('Nhập liệu'!$H$10:$H$1002,'Nhập liệu'!$E$10:$E$1002,'Vật tư'!$B111,'Nhập liệu'!$C$10:$C$1002,">="&'Thông tin'!$C$12,'Nhập liệu'!$C$10:$C$1002,"<="&'Thông tin'!$C$13) -> 0 | G111: =SUMIFS('Nhập liệu'!$I$10:$I$1002,'Nhập liệu'!$E$10:$E$1002,'Vật tư'!$B111,'Nhập liệu'!$C$10:$C$1002,">="&'Thông tin'!$C$12,'Nhập liệu'!$C$10:$C$1002,"<="&'Thông tin'!$C$13) -> 0 | H111: 0
F112: =SUMIFS('Nhập liệu'!$H$10:$H$1002,'Nhập liệu'!$E$10:$E$1002,'Vật tư'!$B112,'Nhập liệu'!$C$10:$C$1002,">="&'Thông tin'!$C$12,'Nhập liệu'!$C$10:$C$1002,"<="&'Thông tin'!$C$13) -> 0 | G112: =SUMIFS('Nhập liệu'!$I$10:$I$1002,'Nhập liệu'!$E$10:$E$1002,'Vật tư'!$B112,'Nhập liệu'!$C$10:$C$1002,">="&'Thông tin'!$C$12,'Nhập liệu'!$C$10:$C$1002,"<="&'Thông tin'!$C$13) -> 0 | H112: 0
F113: =SUMIFS('Nhập liệu'!$H$10:$H$1002,'Nhập liệu'!$E$10:$E$1002,'Vật tư'!$B113,'Nhập liệu'!$C$10:$C$1002,">="&'Thông tin'!$C$12,'Nhập liệu'!$C$10:$C$1002,"<="&'Thông tin'!$C$13) -> 0 | G113: =SUMIFS('Nhập liệu'!$I$10:$I$1002,'Nhập liệu'!$E$10:$E$1002,'Vật tư'!$B113,'Nhập liệu'!$C$10:$C$1002,">="&'Thông tin'!$C$12,'Nhập liệu'!$C$10:$C$1002,"<="&'Thông tin'!$C$13) -> 0 | H113: 0
F114: =SUMIFS('Nhập liệu'!$H$10:$H$1002,'Nhập liệu'!$E$10:$E$1002,'Vật tư'!$B114,'Nhập liệu'!$C$10:$C$1002,">="&'Thông tin'!$C$12,'Nhập liệu'!$C$10:$C$1002,"<="&'Thông tin'!$C$13) -> 0 | G114: =SUMIFS('Nhập liệu'!$I$10:$I$1002,'Nhập liệu'!$E$10:$E$1002,'Vật tư'!$B114,'Nhập liệu'!$C$10:$C$1002,">="&'Thông tin'!$C$12,'Nhập liệu'!$C$10:$C$1002,"<="&'Thông tin'!$C$13) -> 0 | H114: 0
F115: =SUMIFS('Nhập liệu'!$H$10:$H$1002,'Nhập liệu'!$E$10:$E$1002,'Vật tư'!$B115,'Nhập liệu'!$C$10:$C$1002,">="&'Thông tin'!$C$12,'Nhập liệu'!$C$10:$C$1002,"<="&'Thông tin'!$C$13) -> 0 | G115: =SUMIFS('Nhập liệu'!$I$10:$I$1002,'Nhập liệu'!$E$10:$E$1002,'Vật tư'!$B115,'Nhập liệu'!$C$10:$C$1002,">="&'Thông tin'!$C$12,'Nhập liệu'!$C$10:$C$1002,"<="&'Thông tin'!$C$13) -> 0 | H115: 0
F116: =SUMIFS('Nhập liệu'!$H$10:$H$1002,'Nhập liệu'!$E$10:$E$1002,'Vật tư'!$B116,'Nhập liệu'!$C$10:$C$1002,">="&'Thông tin'!$C$12,'Nhập liệu'!$C$10:$C$1002,"<="&'Thông tin'!$C$13) -> 0 | G116: =SUMIFS('Nhập liệu'!$I$10:$I$1002,'Nhập liệu'!$E$10:$E$1002,'Vật tư'!$B116,'Nhập liệu'!$C$10:$C$1002,">="&'Thông tin'!$C$12,'Nhập liệu'!$C$10:$C$1002,"<="&'Thông tin'!$C$13) -> 0 | H116: 0
F117: =SUMIFS('Nhập liệu'!$H$10:$H$1002,'Nhập liệu'!$E$10:$E$1002,'Vật tư'!$B117,'Nhập liệu'!$C$10:$C$1002,">="&'Thông tin'!$C$12,'Nhập liệu'!$C$10:$C$1002,"<="&'Thông tin'!$C$13) -> 0 | G117: =SUMIFS('Nhập liệu'!$I$10:$I$1002,'Nhập liệu'!$E$10:$E$1002,'Vật tư'!$B117,'Nhập liệu'!$C$10:$C$1002,">="&'Thông tin'!$C$12,'Nhập liệu'!$C$10:$C$1002,"<="&'Thông tin'!$C$13) -> 0 | H117: 0
F118: =SUMIFS('Nhập liệu'!$H$10:$H$1002,'Nhập liệu'!$E$10:$E$1002,'Vật tư'!$B118,'Nhập liệu'!$C$10:$C$1002,">="&'Thông tin'!$C$12,'Nhập liệu'!$C$10:$C$1002,"<="&'Thông tin'!$C$13) -> 0 | G118: =SUMIFS('Nhập liệu'!$I$10:$I$1002,'Nhập liệu'!$E$10:$E$1002,'Vật tư'!$B118,'Nhập liệu'!$C$10:$C$1002,">="&'Thông tin'!$C$12,'Nhập liệu'!$C$10:$C$1002,"<="&'Thông tin'!$C$13) -> 0 | H118: 0
F119: =SUMIFS('Nhập liệu'!$H$10:$H$1002,'Nhập liệu'!$E$10:$E$1002,'Vật tư'!$B119,'Nhập liệu'!$C$10:$C$1002,">="&'Thông tin'!$C$12,'Nhập liệu'!$C$10:$C$1002,"<="&'Thông tin'!$C$13) -> 0 | G119: =SUMIFS('Nhập liệu'!$I$10:$I$1002,'Nhập liệu'!$E$10:$E$1002,'Vật tư'!$B119,'Nhập liệu'!$C$10:$C$1002,">="&'Thông tin'!$C$12,'Nhập liệu'!$C$10:$C$1002,"<="&'Thông tin'!$C$13) -> 0 | H119: 0
F120: =SUMIFS('Nhập liệu'!$H$10:$H$1002,'Nhập liệu'!$E$10:$E$1002,'Vật tư'!$B120,'Nhập liệu'!$C$10:$C$1002,">="&'Thông tin'!$C$12,'Nhập liệu'!$C$10:$C$1002,"<="&'Thông tin'!$C$13) -> 0 | G120: =SUMIFS('Nhập liệu'!$I$10:$I$1002,'Nhập liệu'!$E$10:$E$1002,'Vật tư'!$B120,'Nhập liệu'!$C$10:$C$1002,">="&'Thông tin'!$C$12,'Nhập liệu'!$C$10:$C$1002,"<="&'Thông tin'!$C$13) -> 0 | H120: 0
F121: =SUMIFS('Nhập liệu'!$H$10:$H$1002,'Nhập liệu'!$E$10:$E$1002,'Vật tư'!$B121,'Nhập liệu'!$C$10:$C$1002,">="&'Thông tin'!$C$12,'Nhập liệu'!$C$10:$C$1002,"<="&'Thông tin'!$C$13) -> 0 | G121: =SUMIFS('Nhập liệu'!$I$10:$I$1002,'Nhập liệu'!$E$10:$E$1002,'Vật tư'!$B121,'Nhập liệu'!$C$10:$C$1002,">="&'Thông tin'!$C$12,'Nhập liệu'!$C$10:$C$1002,"<="&'Thông tin'!$C$13) -> 0 | H121: 0
F122: =SUMIFS('Nhập liệu'!$H$10:$H$1002,'Nhập liệu'!$E$10:$E$1002,'Vật tư'!$B122,'Nhập liệu'!$C$10:$C$1002,">="&'Thông tin'!$C$12,'Nhập liệu'!$C$10:$C$1002,"<="&'Thông tin'!$C$13) -> 0 | G122: =SUMIFS('Nhập liệu'!$I$10:$I$1002,'Nhập liệu'!$E$10:$E$1002,'Vật tư'!$B122,'Nhập liệu'!$C$10:$C$1002,">="&'Thông tin'!$C$12,'Nhập liệu'!$C$10:$C$1002,"<="&'Thông tin'!$C$13) -> 0 | H122: 0
F123: =SUMIFS('Nhập liệu'!$H$10:$H$1002,'Nhập liệu'!$E$10:$E$1002,'Vật tư'!$B123,'Nhập liệu'!$C$10:$C$1002,">="&'Thông tin'!$C$12,'Nhập liệu'!$C$10:$C$1002,"<="&'Thông tin'!$C$13) -> 0 | G123: =SUMIFS('Nhập liệu'!$I$10:$I$1002,'Nhập liệu'!$E$10:$E$1002,'Vật tư'!$B123,'Nhập liệu'!$C$10:$C$1002,">="&'Thông tin'!$C$12,'Nhập liệu'!$C$10:$C$1002,"<="&'Thông tin'!$C$13) -> 0 | H123: 0
F124: =SUMIFS('Nhập liệu'!$H$10:$H$1002,'Nhập liệu'!$E$10:$E$1002,'Vật tư'!$B124,'Nhập liệu'!$C$10:$C$1002,">="&'Thông tin'!$C$12,'Nhập liệu'!$C$10:$C$1002,"<="&'Thông tin'!$C$13) -> 0 | G124: =SUMIFS('Nhập liệu'!$I$10:$I$1002,'Nhập liệu'!$E$10:$E$1002,'Vật tư'!$B124,'Nhập liệu'!$C$10:$C$1002,">="&'Thông tin'!$C$12,'Nhập liệu'!$C$10:$C$1002,"<="&'Thông tin'!$C$13) -> 0 | H124: 0
F125: =SUMIFS('Nhập liệu'!$H$10:$H$1002,'Nhập liệu'!$E$10:$E$1002,'Vật tư'!$B125,'Nhập liệu'!$C$10:$C$1002,">="&'Thông tin'!$C$12,'Nhập liệu'!$C$10:$C$1002,"<="&'Thông tin'!$C$13) -> 0 | G125: =SUMIFS('Nhập liệu'!$I$10:$I$1002,'Nhập liệu'!$E$10:$E$1002,'Vật tư'!$B125,'Nhập liệu'!$C$10:$C$1002,">="&'Thông tin'!$C$12,'Nhập liệu'!$C$10:$C$1002,"<="&'Thông tin'!$C$13) -> 0 | H125: 0
F126: =SUMIFS('Nhập liệu'!$H$10:$H$1002,'Nhập liệu'!$E$10:$E$1002,'Vật tư'!$B126,'Nhập liệu'!$C$10:$C$1002,">="&'Thông tin'!$C$12,'Nhập liệu'!$C$10:$C$1002,"<="&'Thông tin'!$C$13) -> 0 | G126: =SUMIFS('Nhập liệu'!$I$10:$I$1002,'Nhập liệu'!$E$10:$E$1002,'Vật tư'!$B126,'Nhập liệu'!$C$10:$C$1002,">="&'Thông tin'!$C$12,'Nhập liệu'!$C$10:$C$1002,"<="&'Thông tin'!$C$13) -> 0 | H126: 0
F127: =SUMIFS('Nhập liệu'!$H$10:$H$1002,'Nhập liệu'!$E$10:$E$1002,'Vật tư'!$B127,'Nhập liệu'!$C$10:$C$1002,">="&'Thông tin'!$C$12,'Nhập liệu'!$C$10:$C$1002,"<="&'Thông tin'!$C$13) -> 0 | G127: =SUMIFS('Nhập liệu'!$I$10:$I$1002,'Nhập liệu'!$E$10:$E$1002,'Vật tư'!$B127,'Nhập liệu'!$C$10:$C$1002,">="&'Thông tin'!$C$12,'Nhập liệu'!$C$10:$C$1002,"<="&'Thông tin'!$C$13) -> 0 | H127: 0
F128: =SUMIFS('Nhập liệu'!$H$10:$H$1002,'Nhập liệu'!$E$10:$E$1002,'Vật tư'!$B128,'Nhập liệu'!$C$10:$C$1002,">="&'Thông tin'!$C$12,'Nhập liệu'!$C$10:$C$1002,"<="&'Thông tin'!$C$13) -> 0 | G128: =SUMIFS('Nhập liệu'!$I$10:$I$1002,'Nhập liệu'!$E$10:$E$1002,'Vật tư'!$B128,'Nhập liệu'!$C$10:$C$1002,">="&'Thông tin'!$C$12,'Nhập liệu'!$C$10:$C$1002,"<="&'Thông tin'!$C$13) -> 0 | H128: 0
F129: =SUMIFS('Nhập liệu'!$H$10:$H$1002,'Nhập liệu'!$E$10:$E$1002,'Vật tư'!$B129,'Nhập liệu'!$C$10:$C$1002,">="&'Thông tin'!$C$12,'Nhập liệu'!$C$10:$C$1002,"<="&'Thông tin'!$C$13) -> 0 | G129: =SUMIFS('Nhập liệu'!$I$10:$I$1002,'Nhập liệu'!$E$10:$E$1002,'Vật tư'!$B129,'Nhập liệu'!$C$10:$C$1002,">="&'Thông tin'!$C$12,'Nhập liệu'!$C$10:$C$1002,"<="&'Thông tin'!$C$13) -> 0 | H129: 0
F130: =SUMIFS('Nhập liệu'!$H$10:$H$1002,'Nhập liệu'!$E$10:$E$1002,'Vật tư'!$B130,'Nhập liệu'!$C$10:$C$1002,">="&'Thông tin'!$C$12,'Nhập liệu'!$C$10:$C$1002,"<="&'Thông tin'!$C$13) -> 0 | G130: =SUMIFS('Nhập liệu'!$I$10:$I$1002,'Nhập liệu'!$E$10:$E$1002,'Vật tư'!$B130,'Nhập liệu'!$C$10:$C$1002,">="&'Thông tin'!$C$12,'Nhập liệu'!$C$10:$C$1002,"<="&'Thông tin'!$C$13) -> 0 | H130: 0
F131: =SUMIFS('Nhập liệu'!$H$10:$H$1002,'Nhập liệu'!$E$10:$E$1002,'Vật tư'!$B131,'Nhập liệu'!$C$10:$C$1002,">="&'Thông tin'!$C$12,'Nhập liệu'!$C$10:$C$1002,"<="&'Thông tin'!$C$13) -> 0 | G131: =SUMIFS('Nhập liệu'!$I$10:$I$1002,'Nhập liệu'!$E$10:$E$1002,'Vật tư'!$B131,'Nhập liệu'!$C$10:$C$1002,">="&'Thông tin'!$C$12,'Nhập liệu'!$C$10:$C$1002,"<="&'Thông tin'!$C$13) -> 0 | H131: 0
F132: =SUMIFS('Nhập liệu'!$H$10:$H$1002,'Nhập liệu'!$E$10:$E$1002,'Vật tư'!$B132,'Nhập liệu'!$C$10:$C$1002,">="&'Thông tin'!$C$12,'Nhập liệu'!$C$10:$C$1002,"<="&'Thông tin'!$C$13) -> 0 | G132: =SUMIFS('Nhập liệu'!$I$10:$I$1002,'Nhập liệu'!$E$10:$E$1002,'Vật tư'!$B132,'Nhập liệu'!$C$10:$C$1002,">="&'Thông tin'!$C$12,'Nhập liệu'!$C$10:$C$1002,"<="&'Thông tin'!$C$13) -> 0 | H132: 0
F133: =SUMIFS('Nhập liệu'!$H$10:$H$1002,'Nhập liệu'!$E$10:$E$1002,'Vật tư'!$B133,'Nhập liệu'!$C$10:$C$1002,">="&'Thông tin'!$C$12,'Nhập liệu'!$C$10:$C$1002,"<="&'Thông tin'!$C$13) -> 0 | G133: =SUMIFS('Nhập liệu'!$I$10:$I$1002,'Nhập liệu'!$E$10:$E$1002,'Vật tư'!$B133,'Nhập liệu'!$C$10:$C$1002,">="&'Thông tin'!$C$12,'Nhập liệu'!$C$10:$C$1002,"<="&'Thông tin'!$C$13) -> 0 | H133: 0
F134: =SUMIFS('Nhập liệu'!$H$10:$H$1002,'Nhập liệu'!$E$10:$E$1002,'Vật tư'!$B134,'Nhập liệu'!$C$10:$C$1002,">="&'Thông tin'!$C$12,'Nhập liệu'!$C$10:$C$1002,"<="&'Thông tin'!$C$13) -> 0 | G134: =SUMIFS('Nhập liệu'!$I$10:$I$1002,'Nhập liệu'!$E$10:$E$1002,'Vật tư'!$B134,'Nhập liệu'!$C$10:$C$1002,">="&'Thông tin'!$C$12,'Nhập liệu'!$C$10:$C$1002,"<="&'Thông tin'!$C$13) -> 0 | H134: 0
F135: =SUMIFS('Nhập liệu'!$H$10:$H$1002,'Nhập liệu'!$E$10:$E$1002,'Vật tư'!$B135,'Nhập liệu'!$C$10:$C$1002,">="&'Thông tin'!$C$12,'Nhập liệu'!$C$10:$C$1002,"<="&'Thông tin'!$C$13) -> 0 | G135: =SUMIFS('Nhập liệu'!$I$10:$I$1002,'Nhập liệu'!$E$10:$E$1002,'Vật tư'!$B135,'Nhập liệu'!$C$10:$C$1002,">="&'Thông tin'!$C$12,'Nhập liệu'!$C$10:$C$1002,"<="&'Thông tin'!$C$13) -> 0 | H135: 0
F136: =SUMIFS('Nhập liệu'!$H$10:$H$1002,'Nhập liệu'!$E$10:$E$1002,'Vật tư'!$B136,'Nhập liệu'!$C$10:$C$1002,">="&'Thông tin'!$C$12,'Nhập liệu'!$C$10:$C$1002,"<="&'Thông tin'!$C$13) -> 0 | G136: =SUMIFS('Nhập liệu'!$I$10:$I$1002,'Nhập liệu'!$E$10:$E$1002,'Vật tư'!$B136,'Nhập liệu'!$C$10:$C$1002,">="&'Thông tin'!$C$12,'Nhập liệu'!$C$10:$C$1002,"<="&'Thông tin'!$C$13) -> 0 | H136: 0
F137: =SUMIFS('Nhập liệu'!$H$10:$H$1002,'Nhập liệu'!$E$10:$E$1002,'Vật tư'!$B137,'Nhập liệu'!$C$10:$C$1002,">="&'Thông tin'!$C$12,'Nhập liệu'!$C$10:$C$1002,"<="&'Thông tin'!$C$13) -> 0 | G137: =SUMIFS('Nhập liệu'!$I$10:$I$1002,'Nhập liệu'!$E$10:$E$1002,'Vật tư'!$B137,'Nhập liệu'!$C$10:$C$1002,">="&'Thông tin'!$C$12,'Nhập liệu'!$C$10:$C$1002,"<="&'Thông tin'!$C$13) -> 0 | H137: 0
F138: =SUMIFS('Nhập liệu'!$H$10:$H$1002,'Nhập liệu'!$E$10:$E$1002,'Vật tư'!$B138,'Nhập liệu'!$C$10:$C$1002,">="&'Thông tin'!$C$12,'Nhập liệu'!$C$10:$C$1002,"<="&'Thông tin'!$C$13) -> 0 | G138: =SUMIFS('Nhập liệu'!$I$10:$I$1002,'Nhập liệu'!$E$10:$E$1002,'Vật tư'!$B138,'Nhập liệu'!$C$10:$C$1002,">="&'Thông tin'!$C$12,'Nhập liệu'!$C$10:$C$1002,"<="&'Thông tin'!$C$13) -> 0 | H138: =F138-G138 -> 0
A139: =+IF(OR($A138="",$B139=""),"",$A138+1) ->  | F139: =SUMIFS('Nhập liệu'!$H$10:$H$1002,'Nhập liệu'!$E$10:$E$1002,'Vật tư'!$B139,'Nhập liệu'!$C$10:$C$1002,">="&'Thông tin'!$C$12,'Nhập liệu'!$C$10:$C$1002,"<="&'Thông tin'!$C$13) -> 0 | G139: =SUMIFS('Nhập liệu'!$I$10:$I$1002,'Nhập liệu'!$E$10:$E$1002,'Vật tư'!$B139,'Nhập liệu'!$C$10:$C$1002,">="&'Thông tin'!$C$12,'Nhập liệu'!$C$10:$C$1002,"<="&'Thông tin'!$C$13) -> 0 | H139: 0
F140: =SUMIFS('Nhập liệu'!$H$10:$H$1002,'Nhập liệu'!$E$10:$E$1002,'Vật tư'!$B140,'Nhập liệu'!$C$10:$C$1002,">="&'Thông tin'!$C$12,'Nhập liệu'!$C$10:$C$1002,"<="&'Thông tin'!$C$13) -> 0 | G140: =SUMIFS('Nhập liệu'!$I$10:$I$1002,'Nhập liệu'!$E$10:$E$1002,'Vật tư'!$B140,'Nhập liệu'!$C$10:$C$1002,">="&'Thông tin'!$C$12,'Nhập liệu'!$C$10:$C$1002,"<="&'Thông tin'!$C$13) -> 0 | H140: 0
F141: =SUMIFS('Nhập liệu'!$H$10:$H$1002,'Nhập liệu'!$E$10:$E$1002,'Vật tư'!$B141,'Nhập liệu'!$C$10:$C$1002,">="&'Thông tin'!$C$12,'Nhập liệu'!$C$10:$C$1002,"<="&'Thông tin'!$C$13) -> 0 | G141: =SUMIFS('Nhập liệu'!$I$10:$I$1002,'Nhập liệu'!$E$10:$E$1002,'Vật tư'!$B141,'Nhập liệu'!$C$10:$C$1002,">="&'Thông tin'!$C$12,'Nhập liệu'!$C$10:$C$1002,"<="&'Thông tin'!$C$13) -> 0 | H141: 0
F142: =SUMIFS('Nhập liệu'!$H$10:$H$1002,'Nhập liệu'!$E$10:$E$1002,'Vật tư'!$B142,'Nhập liệu'!$C$10:$C$1002,">="&'Thông tin'!$C$12,'Nhập liệu'!$C$10:$C$1002,"<="&'Thông tin'!$C$13) -> 0 | G142: =SUMIFS('Nhập liệu'!$I$10:$I$1002,'Nhập liệu'!$E$10:$E$1002,'Vật tư'!$B142,'Nhập liệu'!$C$10:$C$1002,">="&'Thông tin'!$C$12,'Nhập liệu'!$C$10:$C$1002,"<="&'Thông tin'!$C$13) -> 0 | H142: 0
F143: =SUMIFS('Nhập liệu'!$H$10:$H$1002,'Nhập liệu'!$E$10:$E$1002,'Vật tư'!$B143,'Nhập liệu'!$C$10:$C$1002,">="&'Thông tin'!$C$12,'Nhập liệu'!$C$10:$C$1002,"<="&'Thông tin'!$C$13) -> 0 | G143: =SUMIFS('Nhập liệu'!$I$10:$I$1002,'Nhập liệu'!$E$10:$E$1002,'Vật tư'!$B143,'Nhập liệu'!$C$10:$C$1002,">="&'Thông tin'!$C$12,'Nhập liệu'!$C$10:$C$1002,"<="&'Thông tin'!$C$13) -> 0 | H143: 0
F144: =SUMIFS('Nhập liệu'!$H$10:$H$1002,'Nhập liệu'!$E$10:$E$1002,'Vật tư'!$B144,'Nhập liệu'!$C$10:$C$1002,">="&'Thông tin'!$C$12,'Nhập liệu'!$C$10:$C$1002,"<="&'Thông tin'!$C$13) -> 0 | G144: =SUMIFS('Nhập liệu'!$I$10:$I$1002,'Nhập liệu'!$E$10:$E$1002,'Vật tư'!$B144,'Nhập liệu'!$C$10:$C$1002,">="&'Thông tin'!$C$12,'Nhập liệu'!$C$10:$C$1002,"<="&'Thông tin'!$C$13) -> 0 | H144: 0
F145: =SUMIFS('Nhập liệu'!$H$10:$H$1002,'Nhập liệu'!$E$10:$E$1002,'Vật tư'!$B145,'Nhập liệu'!$C$10:$C$1002,">="&'Thông tin'!$C$12,'Nhập liệu'!$C$10:$C$1002,"<="&'Thông tin'!$C$13) -> 0 | G145: =SUMIFS('Nhập liệu'!$I$10:$I$1002,'Nhập liệu'!$E$10:$E$1002,'Vật tư'!$B145,'Nhập liệu'!$C$10:$C$1002,">="&'Thông tin'!$C$12,'Nhập liệu'!$C$10:$C$1002,"<="&'Thông tin'!$C$13) -> 0 | H145: 0
F146: =SUMIFS('Nhập liệu'!$H$10:$H$1002,'Nhập liệu'!$E$10:$E$1002,'Vật tư'!$B146,'Nhập liệu'!$C$10:$C$1002,">="&'Thông tin'!$C$12,'Nhập liệu'!$C$10:$C$1002,"<="&'Thông tin'!$C$13) -> 0 | G146: =SUMIFS('Nhập liệu'!$I$10:$I$1002,'Nhập liệu'!$E$10:$E$1002,'Vật tư'!$B146,'Nhập liệu'!$C$10:$C$1002,">="&'Thông tin'!$C$12,'Nhập liệu'!$C$10:$C$1002,"<="&'Thông tin'!$C$13) -> 0 | H146: 0
F147: =SUMIFS('Nhập liệu'!$H$10:$H$1002,'Nhập liệu'!$E$10:$E$1002,'Vật tư'!$B147,'Nhập liệu'!$C$10:$C$1002,">="&'Thông tin'!$C$12,'Nhập liệu'!$C$10:$C$1002,"<="&'Thông tin'!$C$13) -> 0 | G147: =SUMIFS('Nhập liệu'!$I$10:$I$1002,'Nhập liệu'!$E$10:$E$1002,'Vật tư'!$B147,'Nhập liệu'!$C$10:$C$1002,">="&'Thông tin'!$C$12,'Nhập liệu'!$C$10:$C$1002,"<="&'Thông tin'!$C$13) -> 0 | H147: 0
F148: =SUMIFS('Nhập liệu'!$H$10:$H$1002,'Nhập liệu'!$E$10:$E$1002,'Vật tư'!$B148,'Nhập liệu'!$C$10:$C$1002,">="&'Thông tin'!$C$12,'Nhập liệu'!$C$10:$C$1002,"<="&'Thông tin'!$C$13) -> 0 | G148: =SUMIFS('Nhập liệu'!$I$10:$I$1002,'Nhập liệu'!$E$10:$E$1002,'Vật tư'!$B148,'Nhập liệu'!$C$10:$C$1002,">="&'Thông tin'!$C$12,'Nhập liệu'!$C$10:$C$1002,"<="&'Thông tin'!$C$13) -> 0 | H148: 0
F149: =SUMIFS('Nhập liệu'!$H$10:$H$1002,'Nhập liệu'!$E$10:$E$1002,'Vật tư'!$B149,'Nhập liệu'!$C$10:$C$1002,">="&'Thông tin'!$C$12,'Nhập liệu'!$C$10:$C$1002,"<="&'Thông tin'!$C$13) -> 0 | G149: =SUMIFS('Nhập liệu'!$I$10:$I$1002,'Nhập liệu'!$E$10:$E$1002,'Vật tư'!$B149,'Nhập liệu'!$C$10:$C$1002,">="&'Thông tin'!$C$12,'Nhập liệu'!$C$10:$C$1002,"<="&'Thông tin'!$C$13) -> 0 | H149: 0
F150: =SUMIFS('Nhập liệu'!$H$10:$H$1002,'Nhập liệu'!$E$10:$E$1002,'Vật tư'!$B150,'Nhập liệu'!$C$10:$C$1002,">="&'Thông tin'!$C$12,'Nhập liệu'!$C$10:$C$1002,"<="&'Thông tin'!$C$13) -> 0 | G150: =SUMIFS('Nhập liệu'!$I$10:$I$1002,'Nhập liệu'!$E$10:$E$1002,'Vật tư'!$B150,'Nhập liệu'!$C$10:$C$1002,">="&'Thông tin'!$C$12,'Nhập liệu'!$C$10:$C$1002,"<="&'Thông tin'!$C$13) -> 0 | H150: 0
F151: =SUMIFS('Nhập liệu'!$H$10:$H$1002,'Nhập liệu'!$E$10:$E$1002,'Vật tư'!$B151,'Nhập liệu'!$C$10:$C$1002,">="&'Thông tin'!$C$12,'Nhập liệu'!$C$10:$C$1002,"<="&'Thông tin'!$C$13) -> 0 | G151: =SUMIFS('Nhập liệu'!$I$10:$I$1002,'Nhập liệu'!$E$10:$E$1002,'Vật tư'!$B151,'Nhập liệu'!$C$10:$C$1002,">="&'Thông tin'!$C$12,'Nhập liệu'!$C$10:$C$1002,"<="&'Thông tin'!$C$13) -> 0 | H151: 0
F152: =SUMIFS('Nhập liệu'!$H$10:$H$1002,'Nhập liệu'!$E$10:$E$1002,'Vật tư'!$B152,'Nhập liệu'!$C$10:$C$1002,">="&'Thông tin'!$C$12,'Nhập liệu'!$C$10:$C$1002,"<="&'Thông tin'!$C$13) -> 0 | G152: =SUMIFS('Nhập liệu'!$I$10:$I$1002,'Nhập liệu'!$E$10:$E$1002,'Vật tư'!$B152,'Nhập liệu'!$C$10:$C$1002,">="&'Thông tin'!$C$12,'Nhập liệu'!$C$10:$C$1002,"<="&'Thông tin'!$C$13) -> 0 | H152: 0
F153: =SUMIFS('Nhập liệu'!$H$10:$H$1002,'Nhập liệu'!$E$10:$E$1002,'Vật tư'!$B153,'Nhập liệu'!$C$10:$C$1002,">="&'Thông tin'!$C$12,'Nhập liệu'!$C$10:$C$1002,"<="&'Thông tin'!$C$13) -> 0 | G153: =SUMIFS('Nhập liệu'!$I$10:$I$1002,'Nhập liệu'!$E$10:$E$1002,'Vật tư'!$B153,'Nhập liệu'!$C$10:$C$1002,">="&'Thông tin'!$C$12,'Nhập liệu'!$C$10:$C$1002,"<="&'Thông tin'!$C$13) -> 0 | H153: 0
F154: =SUMIFS('Nhập liệu'!$H$10:$H$1002,'Nhập liệu'!$E$10:$E$1002,'Vật tư'!$B154,'Nhập liệu'!$C$10:$C$1002,">="&'Thông tin'!$C$12,'Nhập liệu'!$C$10:$C$1002,"<="&'Thông tin'!$C$13) -> 0 | G154: =SUMIFS('Nhập liệu'!$I$10:$I$1002,'Nhập liệu'!$E$10:$E$1002,'Vật tư'!$B154,'Nhập liệu'!$C$10:$C$1002,">="&'Thông tin'!$C$12,'Nhập liệu'!$C$10:$C$1002,"<="&'Thông tin'!$C$13) -> 0 | H154: 0
F155: =SUMIFS('Nhập liệu'!$H$10:$H$1002,'Nhập liệu'!$E$10:$E$1002,'Vật tư'!$B155,'Nhập liệu'!$C$10:$C$1002,">="&'Thông tin'!$C$12,'Nhập liệu'!$C$10:$C$1002,"<="&'Thông tin'!$C$13) -> 0 | G155: =SUMIFS('Nhập liệu'!$I$10:$I$1002,'Nhập liệu'!$E$10:$E$1002,'Vật tư'!$B155,'Nhập liệu'!$C$10:$C$1002,">="&'Thông tin'!$C$12,'Nhập liệu'!$C$10:$C$1002,"<="&'Thông tin'!$C$13) -> 0 | H155: 0
F156: =SUMIFS('Nhập liệu'!$H$10:$H$1002,'Nhập liệu'!$E$10:$E$1002,'Vật tư'!$B156,'Nhập liệu'!$C$10:$C$1002,">="&'Thông tin'!$C$12,'Nhập liệu'!$C$10:$C$1002,"<="&'Thông tin'!$C$13) -> 0 | G156: =SUMIFS('Nhập liệu'!$I$10:$I$1002,'Nhập liệu'!$E$10:$E$1002,'Vật tư'!$B156,'Nhập liệu'!$C$10:$C$1002,">="&'Thông tin'!$C$12,'Nhập liệu'!$C$10:$C$1002,"<="&'Thông tin'!$C$13) -> 0 | H156: 0
F157: =SUMIFS('Nhập liệu'!$H$10:$H$1002,'Nhập liệu'!$E$10:$E$1002,'Vật tư'!$B157,'Nhập liệu'!$C$10:$C$1002,">="&'Thông tin'!$C$12,'Nhập liệu'!$C$10:$C$1002,"<="&'Thông tin'!$C$13) -> 0 | G157: =SUMIFS('Nhập liệu'!$I$10:$I$1002,'Nhập liệu'!$E$10:$E$1002,'Vật tư'!$B157,'Nhập liệu'!$C$10:$C$1002,">="&'Thông tin'!$C$12,'Nhập liệu'!$C$10:$C$1002,"<="&'Thông tin'!$C$13) -> 0 | H157: 0
F158: =SUMIFS('Nhập liệu'!$H$10:$H$1002,'Nhập liệu'!$E$10:$E$1002,'Vật tư'!$B158,'Nhập liệu'!$C$10:$C$1002,">="&'Thông tin'!$C$12,'Nhập liệu'!$C$10:$C$1002,"<="&'Thông tin'!$C$13) -> 0 | G158: =SUMIFS('Nhập liệu'!$I$10:$I$1002,'Nhập liệu'!$E$10:$E$1002,'Vật tư'!$B158,'Nhập liệu'!$C$10:$C$1002,">="&'Thông tin'!$C$12,'Nhập liệu'!$C$10:$C$1002,"<="&'Thông tin'!$C$13) -> 0 | H158: 0
F159: =SUMIFS('Nhập liệu'!$H$10:$H$1002,'Nhập liệu'!$E$10:$E$1002,'Vật tư'!$B159,'Nhập liệu'!$C$10:$C$1002,">="&'Thông tin'!$C$12,'Nhập liệu'!$C$10:$C$1002,"<="&'Thông tin'!$C$13) -> 0 | G159: =SUMIFS('Nhập liệu'!$I$10:$I$1002,'Nhập liệu'!$E$10:$E$1002,'Vật tư'!$B159,'Nhập liệu'!$C$10:$C$1002,">="&'Thông tin'!$C$12,'Nhập liệu'!$C$10:$C$1002,"<="&'Thông tin'!$C$13) -> 0 | H159: 0
F160: =SUMIFS('Nhập liệu'!$H$10:$H$1002,'Nhập liệu'!$E$10:$E$1002,'Vật tư'!$B160,'Nhập liệu'!$C$10:$C$1002,">="&'Thông tin'!$C$12,'Nhập liệu'!$C$10:$C$1002,"<="&'Thông tin'!$C$13) -> 0 | G160: =SUMIFS('Nhập liệu'!$I$10:$I$1002,'Nhập liệu'!$E$10:$E$1002,'Vật tư'!$B160,'Nhập liệu'!$C$10:$C$1002,">="&'Thông tin'!$C$12,'Nhập liệu'!$C$10:$C$1002,"<="&'Thông tin'!$C$13) -> 0 | H160: 0
F161: =SUMIFS('Nhập liệu'!$H$10:$H$1002,'Nhập liệu'!$E$10:$E$1002,'Vật tư'!$B161,'Nhập liệu'!$C$10:$C$1002,">="&'Thông tin'!$C$12,'Nhập liệu'!$C$10:$C$1002,"<="&'Thông tin'!$C$13) -> 0 | G161: =SUMIFS('Nhập liệu'!$I$10:$I$1002,'Nhập liệu'!$E$10:$E$1002,'Vật tư'!$B161,'Nhập liệu'!$C$10:$C$1002,">="&'Thông tin'!$C$12,'Nhập liệu'!$C$10:$C$1002,"<="&'Thông tin'!$C$13) -> 0 | H161: 0
F162: =SUMIFS('Nhập liệu'!$H$10:$H$1002,'Nhập liệu'!$E$10:$E$1002,'Vật tư'!$B162,'Nhập liệu'!$C$10:$C$1002,">="&'Thông tin'!$C$12,'Nhập liệu'!$C$10:$C$1002,"<="&'Thông tin'!$C$13) -> 0 | G162: =SUMIFS('Nhập liệu'!$I$10:$I$1002,'Nhập liệu'!$E$10:$E$1002,'Vật tư'!$B162,'Nhập liệu'!$C$10:$C$1002,">="&'Thông tin'!$C$12,'Nhập liệu'!$C$10:$C$1002,"<="&'Thông tin'!$C$13) -> 0 | H162: 0
F163: =SUMIFS('Nhập liệu'!$H$10:$H$1002,'Nhập liệu'!$E$10:$E$1002,'Vật tư'!$B163,'Nhập liệu'!$C$10:$C$1002,">="&'Thông tin'!$C$12,'Nhập liệu'!$C$10:$C$1002,"<="&'Thông tin'!$C$13) -> 0 | G163: =SUMIFS('Nhập liệu'!$I$10:$I$1002,'Nhập liệu'!$E$10:$E$1002,'Vật tư'!$B163,'Nhập liệu'!$C$10:$C$1002,">="&'Thông tin'!$C$12,'Nhập liệu'!$C$10:$C$1002,"<="&'Thông tin'!$C$13) -> 0 | H163: 0
F164: =SUMIFS('Nhập liệu'!$H$10:$H$1002,'Nhập liệu'!$E$10:$E$1002,'Vật tư'!$B164,'Nhập liệu'!$C$10:$C$1002,">="&'Thông tin'!$C$12,'Nhập liệu'!$C$10:$C$1002,"<="&'Thông tin'!$C$13) -> 0 | G164: =SUMIFS('Nhập liệu'!$I$10:$I$1002,'Nhập liệu'!$E$10:$E$1002,'Vật tư'!$B164,'Nhập liệu'!$C$10:$C$1002,">="&'Thông tin'!$C$12,'Nhập liệu'!$C$10:$C$1002,"<="&'Thông tin'!$C$13) -> 0 | H164: 0
F165: =SUMIFS('Nhập liệu'!$H$10:$H$1002,'Nhập liệu'!$E$10:$E$1002,'Vật tư'!$B165,'Nhập liệu'!$C$10:$C$1002,">="&'Thông tin'!$C$12,'Nhập liệu'!$C$10:$C$1002,"<="&'Thông tin'!$C$13) -> 0 | G165: =SUMIFS('Nhập liệu'!$I$10:$I$1002,'Nhập liệu'!$E$10:$E$1002,'Vật tư'!$B165,'Nhập liệu'!$C$10:$C$1002,">="&'Thông tin'!$C$12,'Nhập liệu'!$C$10:$C$1002,"<="&'Thông tin'!$C$13) -> 0 | H165: 0
F166: =SUMIFS('Nhập liệu'!$H$10:$H$1002,'Nhập liệu'!$E$10:$E$1002,'Vật tư'!$B166,'Nhập liệu'!$C$10:$C$1002,">="&'Thông tin'!$C$12,'Nhập liệu'!$C$10:$C$1002,"<="&'Thông tin'!$C$13) -> 0 | G166: =SUMIFS('Nhập liệu'!$I$10:$I$1002,'Nhập liệu'!$E$10:$E$1002,'Vật tư'!$B166,'Nhập liệu'!$C$10:$C$1002,">="&'Thông tin'!$C$12,'Nhập liệu'!$C$10:$C$1002,"<="&'Thông tin'!$C$13) -> 0 | H166: 0
F167: =SUMIFS('Nhập liệu'!$H$10:$H$1002,'Nhập liệu'!$E$10:$E$1002,'Vật tư'!$B167,'Nhập liệu'!$C$10:$C$1002,">="&'Thông tin'!$C$12,'Nhập liệu'!$C$10:$C$1002,"<="&'Thông tin'!$C$13) -> 0 | G167: =SUMIFS('Nhập liệu'!$I$10:$I$1002,'Nhập liệu'!$E$10:$E$1002,'Vật tư'!$B167,'Nhập liệu'!$C$10:$C$1002,">="&'Thông tin'!$C$12,'Nhập liệu'!$C$10:$C$1002,"<="&'Thông tin'!$C$13) -> 0 | H167: 0
F168: =SUMIFS('Nhập liệu'!$H$10:$H$1002,'Nhập liệu'!$E$10:$E$1002,'Vật tư'!$B168,'Nhập liệu'!$C$10:$C$1002,">="&'Thông tin'!$C$12,'Nhập liệu'!$C$10:$C$1002,"<="&'Thông tin'!$C$13) -> 0 | G168: =SUMIFS('Nhập liệu'!$I$10:$I$1002,'Nhập liệu'!$E$10:$E$1002,'Vật tư'!$B168,'Nhập liệu'!$C$10:$C$1002,">="&'Thông tin'!$C$12,'Nhập liệu'!$C$10:$C$1002,"<="&'Thông tin'!$C$13) -> 0 | H168: 0
F169: =SUMIFS('Nhập liệu'!$H$10:$H$1002,'Nhập liệu'!$E$10:$E$1002,'Vật tư'!$B169,'Nhập liệu'!$C$10:$C$1002,">="&'Thông tin'!$C$12,'Nhập liệu'!$C$10:$C$1002,"<="&'Thông tin'!$C$13) -> 0 | G169: =SUMIFS('Nhập liệu'!$I$10:$I$1002,'Nhập liệu'!$E$10:$E$1002,'Vật tư'!$B169,'Nhập liệu'!$C$10:$C$1002,">="&'Thông tin'!$C$12,'Nhập liệu'!$C$10:$C$1002,"<="&'Thông tin'!$C$13) -> 0 | H169: 0
F170: =SUMIFS('Nhập liệu'!$H$10:$H$1002,'Nhập liệu'!$E$10:$E$1002,'Vật tư'!$B170,'Nhập liệu'!$C$10:$C$1002,">="&'Thông tin'!$C$12,'Nhập liệu'!$C$10:$C$1002,"<="&'Thông tin'!$C$13) -> 0 | G170: =SUMIFS('Nhập liệu'!$I$10:$I$1002,'Nhập liệu'!$E$10:$E$1002,'Vật tư'!$B170,'Nhập liệu'!$C$10:$C$1002,">="&'Thông tin'!$C$12,'Nhập liệu'!$C$10:$C$1002,"<="&'Thông tin'!$C$13) -> 0 | H170: 0
F171: =SUMIFS('Nhập liệu'!$H$10:$H$1002,'Nhập liệu'!$E$10:$E$1002,'Vật tư'!$B171,'Nhập liệu'!$C$10:$C$1002,">="&'Thông tin'!$C$12,'Nhập liệu'!$C$10:$C$1002,"<="&'Thông tin'!$C$13) -> 0 | G171: =SUMIFS('Nhập liệu'!$I$10:$I$1002,'Nhập liệu'!$E$10:$E$1002,'Vật tư'!$B171,'Nhập liệu'!$C$10:$C$1002,">="&'Thông tin'!$C$12,'Nhập liệu'!$C$10:$C$1002,"<="&'Thông tin'!$C$13) -> 0 | H171: 0
F172: =SUMIFS('Nhập liệu'!$H$10:$H$1002,'Nhập liệu'!$E$10:$E$1002,'Vật tư'!$B172,'Nhập liệu'!$C$10:$C$1002,">="&'Thông tin'!$C$12,'Nhập liệu'!$C$10:$C$1002,"<="&'Thông tin'!$C$13) -> 0 | G172: =SUMIFS('Nhập liệu'!$I$10:$I$1002,'Nhập liệu'!$E$10:$E$1002,'Vật tư'!$B172,'Nhập liệu'!$C$10:$C$1002,">="&'Thông tin'!$C$12,'Nhập liệu'!$C$10:$C$1002,"<="&'Thông tin'!$C$13) -> 0 | H172: 0
F173: =SUMIFS('Nhập liệu'!$H$10:$H$1002,'Nhập liệu'!$E$10:$E$1002,'Vật tư'!$B173,'Nhập liệu'!$C$10:$C$1002,">="&'Thông tin'!$C$12,'Nhập liệu'!$C$10:$C$1002,"<="&'Thông tin'!$C$13) -> 0 | G173: =SUMIFS('Nhập liệu'!$I$10:$I$1002,'Nhập liệu'!$E$10:$E$1002,'Vật tư'!$B173,'Nhập liệu'!$C$10:$C$1002,">="&'Thông tin'!$C$12,'Nhập liệu'!$C$10:$C$1002,"<="&'Thông tin'!$C$13) -> 0 | H173: 0
F174: =SUMIFS('Nhập liệu'!$H$10:$H$1002,'Nhập liệu'!$E$10:$E$1002,'Vật tư'!$B174,'Nhập liệu'!$C$10:$C$1002,">="&'Thông tin'!$C$12,'Nhập liệu'!$C$10:$C$1002,"<="&'Thông tin'!$C$13) -> 0 | G174: =SUMIFS('Nhập liệu'!$I$10:$I$1002,'Nhập liệu'!$E$10:$E$1002,'Vật tư'!$B174,'Nhập liệu'!$C$10:$C$1002,">="&'Thông tin'!$C$12,'Nhập liệu'!$C$10:$C$1002,"<="&'Thông tin'!$C$13) -> 0 | H174: 0
F175: =SUMIFS('Nhập liệu'!$H$10:$H$1002,'Nhập liệu'!$E$10:$E$1002,'Vật tư'!$B175,'Nhập liệu'!$C$10:$C$1002,">="&'Thông tin'!$C$12,'Nhập liệu'!$C$10:$C$1002,"<="&'Thông tin'!$C$13) -> 0 | G175: =SUMIFS('Nhập liệu'!$I$10:$I$1002,'Nhập liệu'!$E$10:$E$1002,'Vật tư'!$B175,'Nhập liệu'!$C$10:$C$1002,">="&'Thông tin'!$C$12,'Nhập liệu'!$C$10:$C$1002,"<="&'Thông tin'!$C$13) -> 0 | H175: 0
F176: =SUMIFS('Nhập liệu'!$H$10:$H$1002,'Nhập liệu'!$E$10:$E$1002,'Vật tư'!$B176,'Nhập liệu'!$C$10:$C$1002,">="&'Thông tin'!$C$12,'Nhập liệu'!$C$10:$C$1002,"<="&'Thông tin'!$C$13) -> 0 | G176: =SUMIFS('Nhập liệu'!$I$10:$I$1002,'Nhập liệu'!$E$10:$E$1002,'Vật tư'!$B176,'Nhập liệu'!$C$10:$C$1002,">="&'Thông tin'!$C$12,'Nhập liệu'!$C$10:$C$1002,"<="&'Thông tin'!$C$13) -> 0 | H176: 0
F177: =SUMIFS('Nhập liệu'!$H$10:$H$1002,'Nhập liệu'!$E$10:$E$1002,'Vật tư'!$B177,'Nhập liệu'!$C$10:$C$1002,">="&'Thông tin'!$C$12,'Nhập liệu'!$C$10:$C$1002,"<="&'Thông tin'!$C$13) -> 0 | G177: =SUMIFS('Nhập liệu'!$I$10:$I$1002,'Nhập liệu'!$E$10:$E$1002,'Vật tư'!$B177,'Nhập liệu'!$C$10:$C$1002,">="&'Thông tin'!$C$12,'Nhập liệu'!$C$10:$C$1002,"<="&'Thông tin'!$C$13) -> 0 | H177: 0
F178: =SUMIFS('Nhập liệu'!$H$10:$H$1002,'Nhập liệu'!$E$10:$E$1002,'Vật tư'!$B178,'Nhập liệu'!$C$10:$C$1002,">="&'Thông tin'!$C$12,'Nhập liệu'!$C$10:$C$1002,"<="&'Thông tin'!$C$13) -> 0 | G178: =SUMIFS('Nhập liệu'!$I$10:$I$1002,'Nhập liệu'!$E$10:$E$1002,'Vật tư'!$B178,'Nhập liệu'!$C$10:$C$1002,">="&'Thông tin'!$C$12,'Nhập liệu'!$C$10:$C$1002,"<="&'Thông tin'!$C$13) -> 0 | H178: 0
F179: =SUMIFS('Nhập liệu'!$H$10:$H$1002,'Nhập liệu'!$E$10:$E$1002,'Vật tư'!$B179,'Nhập liệu'!$C$10:$C$1002,">="&'Thông tin'!$C$12,'Nhập liệu'!$C$10:$C$1002,"<="&'Thông tin'!$C$13) -> 0 | G179: =SUMIFS('Nhập liệu'!$I$10:$I$1002,'Nhập liệu'!$E$10:$E$1002,'Vật tư'!$B179,'Nhập liệu'!$C$10:$C$1002,">="&'Thông tin'!$C$12,'Nhập liệu'!$C$10:$C$1002,"<="&'Thông tin'!$C$13) -> 0 | H179: 0
F180: =SUMIFS('Nhập liệu'!$H$10:$H$1002,'Nhập liệu'!$E$10:$E$1002,'Vật tư'!$B180,'Nhập liệu'!$C$10:$C$1002,">="&'Thông tin'!$C$12,'Nhập liệu'!$C$10:$C$1002,"<="&'Thông tin'!$C$13) -> 0 | G180: =SUMIFS('Nhập liệu'!$I$10:$I$1002,'Nhập liệu'!$E$10:$E$1002,'Vật tư'!$B180,'Nhập liệu'!$C$10:$C$1002,">="&'Thông tin'!$C$12,'Nhập liệu'!$C$10:$C$1002,"<="&'Thông tin'!$C$13) -> 0 | H180: 0
F181: =SUMIFS('Nhập liệu'!$H$10:$H$1002,'Nhập liệu'!$E$10:$E$1002,'Vật tư'!$B181,'Nhập liệu'!$C$10:$C$1002,">="&'Thông tin'!$C$12,'Nhập liệu'!$C$10:$C$1002,"<="&'Thông tin'!$C$13) -> 0 | G181: =SUMIFS('Nhập liệu'!$I$10:$I$1002,'Nhập liệu'!$E$10:$E$1002,'Vật tư'!$B181,'Nhập liệu'!$C$10:$C$1002,">="&'Thông tin'!$C$12,'Nhập liệu'!$C$10:$C$1002,"<="&'Thông tin'!$C$13) -> 0 | H181: 0
F182: =SUMIFS('Nhập liệu'!$H$10:$H$1002,'Nhập liệu'!$E$10:$E$1002,'Vật tư'!$B182,'Nhập liệu'!$C$10:$C$1002,">="&'Thông tin'!$C$12,'Nhập liệu'!$C$10:$C$1002,"<="&'Thông tin'!$C$13) -> 0 | G182: =SUMIFS('Nhập liệu'!$I$10:$I$1002,'Nhập liệu'!$E$10:$E$1002,'Vật tư'!$B182,'Nhập liệu'!$C$10:$C$1002,">="&'Thông tin'!$C$12,'Nhập liệu'!$C$10:$C$1002,"<="&'Thông tin'!$C$13) -> 0 | H182: 0
F183: =SUMIFS('Nhập liệu'!$H$10:$H$1002,'Nhập liệu'!$E$10:$E$1002,'Vật tư'!$B183,'Nhập liệu'!$C$10:$C$1002,">="&'Thông tin'!$C$12,'Nhập liệu'!$C$10:$C$1002,"<="&'Thông tin'!$C$13) -> 0 | G183: =SUMIFS('Nhập liệu'!$I$10:$I$1002,'Nhập liệu'!$E$10:$E$1002,'Vật tư'!$B183,'Nhập liệu'!$C$10:$C$1002,">="&'Thông tin'!$C$12,'Nhập liệu'!$C$10:$C$1002,"<="&'Thông tin'!$C$13) -> 0 | H183: 0
F184: =SUMIFS('Nhập liệu'!$H$10:$H$1002,'Nhập liệu'!$E$10:$E$1002,'Vật tư'!$B184,'Nhập liệu'!$C$10:$C$1002,">="&'Thông tin'!$C$12,'Nhập liệu'!$C$10:$C$1002,"<="&'Thông tin'!$C$13) -> 0 | G184: =SUMIFS('Nhập liệu'!$I$10:$I$1002,'Nhập liệu'!$E$10:$E$1002,'Vật tư'!$B184,'Nhập liệu'!$C$10:$C$1002,">="&'Thông tin'!$C$12,'Nhập liệu'!$C$10:$C$1002,"<="&'Thông tin'!$C$13) -> 0 | H184: 0
F185: =SUMIFS('Nhập liệu'!$H$10:$H$1002,'Nhập liệu'!$E$10:$E$1002,'Vật tư'!$B185,'Nhập liệu'!$C$10:$C$1002,">="&'Thông tin'!$C$12,'Nhập liệu'!$C$10:$C$1002,"<="&'Thông tin'!$C$13) -> 0 | G185: =SUMIFS('Nhập liệu'!$I$10:$I$1002,'Nhập liệu'!$E$10:$E$1002,'Vật tư'!$B185,'Nhập liệu'!$C$10:$C$1002,">="&'Thông tin'!$C$12,'Nhập liệu'!$C$10:$C$1002,"<="&'Thông tin'!$C$13) -> 0 | H185: 0
F186: =SUMIFS('Nhập liệu'!$H$10:$H$1002,'Nhập liệu'!$E$10:$E$1002,'Vật tư'!$B186,'Nhập liệu'!$C$10:$C$1002,">="&'Thông tin'!$C$12,'Nhập liệu'!$C$10:$C$1002,"<="&'Thông tin'!$C$13) -> 0 | G186: =SUMIFS('Nhập liệu'!$I$10:$I$1002,'Nhập liệu'!$E$10:$E$1002,'Vật tư'!$B186,'Nhập liệu'!$C$10:$C$1002,">="&'Thông tin'!$C$12,'Nhập liệu'!$C$10:$C$1002,"<="&'Thông tin'!$C$13) -> 0 | H186: 0
F187: =SUMIFS('Nhập liệu'!$H$10:$H$1002,'Nhập liệu'!$E$10:$E$1002,'Vật tư'!$B187,'Nhập liệu'!$C$10:$C$1002,">="&'Thông tin'!$C$12,'Nhập liệu'!$C$10:$C$1002,"<="&'Thông tin'!$C$13) -> 0 | G187: =SUMIFS('Nhập liệu'!$I$10:$I$1002,'Nhập liệu'!$E$10:$E$1002,'Vật tư'!$B187,'Nhập liệu'!$C$10:$C$1002,">="&'Thông tin'!$C$12,'Nhập liệu'!$C$10:$C$1002,"<="&'Thông tin'!$C$13) -> 0 | H187: 0
F188: =SUMIFS('Nhập liệu'!$H$10:$H$1002,'Nhập liệu'!$E$10:$E$1002,'Vật tư'!$B188,'Nhập liệu'!$C$10:$C$1002,">="&'Thông tin'!$C$12,'Nhập liệu'!$C$10:$C$1002,"<="&'Thông tin'!$C$13) -> 0 | G188: =SUMIFS('Nhập liệu'!$I$10:$I$1002,'Nhập liệu'!$E$10:$E$1002,'Vật tư'!$B188,'Nhập liệu'!$C$10:$C$1002,">="&'Thông tin'!$C$12,'Nhập liệu'!$C$10:$C$1002,"<="&'Thông tin'!$C$13) -> 0 | H188: 0
F189: =SUMIFS('Nhập liệu'!$H$10:$H$1002,'Nhập liệu'!$E$10:$E$1002,'Vật tư'!$B189,'Nhập liệu'!$C$10:$C$1002,">="&'Thông tin'!$C$12,'Nhập liệu'!$C$10:$C$1002,"<="&'Thông tin'!$C$13) -> 0 | G189: =SUMIFS('Nhập liệu'!$I$10:$I$1002,'Nhập liệu'!$E$10:$E$1002,'Vật tư'!$B189,'Nhập liệu'!$C$10:$C$1002,">="&'Thông tin'!$C$12,'Nhập liệu'!$C$10:$C$1002,"<="&'Thông tin'!$C$13) -> 0 | H189: 0
F190: =SUMIFS('Nhập liệu'!$H$10:$H$1002,'Nhập liệu'!$E$10:$E$1002,'Vật tư'!$B190,'Nhập liệu'!$C$10:$C$1002,">="&'Thông tin'!$C$12,'Nhập liệu'!$C$10:$C$1002,"<="&'Thông tin'!$C$13) -> 0 | G190: =SUMIFS('Nhập liệu'!$I$10:$I$1002,'Nhập liệu'!$E$10:$E$1002,'Vật tư'!$B190,'Nhập liệu'!$C$10:$C$1002,">="&'Thông tin'!$C$12,'Nhập liệu'!$C$10:$C$1002,"<="&'Thông tin'!$C$13) -> 0 | H190: 0
F191: =SUMIFS('Nhập liệu'!$H$10:$H$1002,'Nhập liệu'!$E$10:$E$1002,'Vật tư'!$B191,'Nhập liệu'!$C$10:$C$1002,">="&'Thông tin'!$C$12,'Nhập liệu'!$C$10:$C$1002,"<="&'Thông tin'!$C$13) -> 0 | G191: =SUMIFS('Nhập liệu'!$I$10:$I$1002,'Nhập liệu'!$E$10:$E$1002,'Vật tư'!$B191,'Nhập liệu'!$C$10:$C$1002,">="&'Thông tin'!$C$12,'Nhập liệu'!$C$10:$C$1002,"<="&'Thông tin'!$C$13) -> 0 | H191: 0
F192: =SUMIFS('Nhập liệu'!$H$10:$H$1002,'Nhập liệu'!$E$10:$E$1002,'Vật tư'!$B192,'Nhập liệu'!$C$10:$C$1002,">="&'Thông tin'!$C$12,'Nhập liệu'!$C$10:$C$1002,"<="&'Thông tin'!$C$13) -> 0 | G192: =SUMIFS('Nhập liệu'!$I$10:$I$1002,'Nhập liệu'!$E$10:$E$1002,'Vật tư'!$B192,'Nhập liệu'!$C$10:$C$1002,">="&'Thông tin'!$C$12,'Nhập liệu'!$C$10:$C$1002,"<="&'Thông tin'!$C$13) -> 0 | H192: 0
F193: =SUMIFS('Nhập liệu'!$H$10:$H$1002,'Nhập liệu'!$E$10:$E$1002,'Vật tư'!$B193,'Nhập liệu'!$C$10:$C$1002,">="&'Thông tin'!$C$12,'Nhập liệu'!$C$10:$C$1002,"<="&'Thông tin'!$C$13) -> 0 | G193: =SUMIFS('Nhập liệu'!$I$10:$I$1002,'Nhập liệu'!$E$10:$E$1002,'Vật tư'!$B193,'Nhập liệu'!$C$10:$C$1002,">="&'Thông tin'!$C$12,'Nhập liệu'!$C$10:$C$1002,"<="&'Thông tin'!$C$13) -> 0 | H193: 0
F194: =SUMIFS('Nhập liệu'!$H$10:$H$1002,'Nhập liệu'!$E$10:$E$1002,'Vật tư'!$B194,'Nhập liệu'!$C$10:$C$1002,">="&'Thông tin'!$C$12,'Nhập liệu'!$C$10:$C$1002,"<="&'Thông tin'!$C$13) -> 0 | G194: =SUMIFS('Nhập liệu'!$I$10:$I$1002,'Nhập liệu'!$E$10:$E$1002,'Vật tư'!$B194,'Nhập liệu'!$C$10:$C$1002,">="&'Thông tin'!$C$12,'Nhập liệu'!$C$10:$C$1002,"<="&'Thông tin'!$C$13) -> 0 | H194: 0
F195: =SUMIFS('Nhập liệu'!$H$10:$H$1002,'Nhập liệu'!$E$10:$E$1002,'Vật tư'!$B195,'Nhập liệu'!$C$10:$C$1002,">="&'Thông tin'!$C$12,'Nhập liệu'!$C$10:$C$1002,"<="&'Thông tin'!$C$13) -> 0 | G195: =SUMIFS('Nhập liệu'!$I$10:$I$1002,'Nhập liệu'!$E$10:$E$1002,'Vật tư'!$B195,'Nhập liệu'!$C$10:$C$1002,">="&'Thông tin'!$C$12,'Nhập liệu'!$C$10:$C$1002,"<="&'Thông tin'!$C$13) -> 0 | H195: 0
F196: =SUMIFS('Nhập liệu'!$H$10:$H$1002,'Nhập liệu'!$E$10:$E$1002,'Vật tư'!$B196,'Nhập liệu'!$C$10:$C$1002,">="&'Thông tin'!$C$12,'Nhập liệu'!$C$10:$C$1002,"<="&'Thông tin'!$C$13) -> 0 | G196: =SUMIFS('Nhập liệu'!$I$10:$I$1002,'Nhập liệu'!$E$10:$E$1002,'Vật tư'!$B196,'Nhập liệu'!$C$10:$C$1002,">="&'Thông tin'!$C$12,'Nhập liệu'!$C$10:$C$1002,"<="&'Thông tin'!$C$13) -> 0 | H196: 0
F197: =SUMIFS('Nhập liệu'!$H$10:$H$1002,'Nhập liệu'!$E$10:$E$1002,'Vật tư'!$B197,'Nhập liệu'!$C$10:$C$1002,">="&'Thông tin'!$C$12,'Nhập liệu'!$C$10:$C$1002,"<="&'Thông tin'!$C$13) -> 0 | G197: =SUMIFS('Nhập liệu'!$I$10:$I$1002,'Nhập liệu'!$E$10:$E$1002,'Vật tư'!$B197,'Nhập liệu'!$C$10:$C$1002,">="&'Thông tin'!$C$12,'Nhập liệu'!$C$10:$C$1002,"<="&'Thông tin'!$C$13) -> 0 | H197: 0
F198: =SUMIFS('Nhập liệu'!$H$10:$H$1002,'Nhập liệu'!$E$10:$E$1002,'Vật tư'!$B198,'Nhập liệu'!$C$10:$C$1002,">="&'Thông tin'!$C$12,'Nhập liệu'!$C$10:$C$1002,"<="&'Thông tin'!$C$13) -> 0 | G198: =SUMIFS('Nhập liệu'!$I$10:$I$1002,'Nhập liệu'!$E$10:$E$1002,'Vật tư'!$B198,'Nhập liệu'!$C$10:$C$1002,">="&'Thông tin'!$C$12,'Nhập liệu'!$C$10:$C$1002,"<="&'Thông tin'!$C$13) -> 0 | H198: 0
F199: =SUMIFS('Nhập liệu'!$H$10:$H$1002,'Nhập liệu'!$E$10:$E$1002,'Vật tư'!$B199,'Nhập liệu'!$C$10:$C$1002,">="&'Thông tin'!$C$12,'Nhập liệu'!$C$10:$C$1002,"<="&'Thông tin'!$C$13) -> 0 | G199: =SUMIFS('Nhập liệu'!$I$10:$I$1002,'Nhập liệu'!$E$10:$E$1002,'Vật tư'!$B199,'Nhập liệu'!$C$10:$C$1002,">="&'Thông tin'!$C$12,'Nhập liệu'!$C$10:$C$1002,"<="&'Thông tin'!$C$13) -> 0 | H199: 0
F200: =SUMIFS('Nhập liệu'!$H$10:$H$1002,'Nhập liệu'!$E$10:$E$1002,'Vật tư'!$B200,'Nhập liệu'!$C$10:$C$1002,">="&'Thông tin'!$C$12,'Nhập liệu'!$C$10:$C$1002,"<="&'Thông tin'!$C$13) -> 0 | G200: =SUMIFS('Nhập liệu'!$I$10:$I$1002,'Nhập liệu'!$E$10:$E$1002,'Vật tư'!$B200,'Nhập liệu'!$C$10:$C$1002,">="&'Thông tin'!$C$12,'Nhập liệu'!$C$10:$C$1002,"<="&'Thông tin'!$C$13) -> 0 | H200: 0
A201: Ghi chú: Chèn dòng trước khi thêm bản ghi khi đến dòng cuối

Sheet Nhà cung cấp
A1: =tt_Tên_Công_ty -> TỔNG CÔNG TY XD CTGT 6 - CÔNG TY CỔ PHẦN
A2: =tt_Địa_chỉ -> 127 Đinh Tiên Hoàng, F3, Q.Bình Thạnh, TP.HCM
A3: ="Tên kho: "&tt_Tên_Kho -> Tên kho: Trạm Trộn BTNN Núi Nhọn
A4: KHÁCH HÀNG, NHÀ CUNG CẤP
A6: STT | B6: Mã KH | C6: Tên khách hàng, nhà cung cấp | D6: MST | E6: Địa chỉ
A7: stt | B7: makh | C7: tenkhachhang | D7: mst | E7: diachi
A8: 1 | B8: KH-00001 | C8: Công ty TNHH PuMa | D8: 34000000000 | E8: 127 Đinh Tiên Hoàng, F3, Q.Bình Thạnh, TP.HCM
A9: 2 | B9: KH-00002 | C9: Công Ty TNHH Petrolimex | D9: 34000000001 | E9: 128 Đinh Tiên Hoàng, F3, Q.Bình Thạnh, TP.HCM
A10: 3 | B10: KH-00003 | C10: Công Ty Hocim | D10: 34000000002 | E10: 129 Đinh Tiên Hoàng, F3, Q.Bình Thạnh, TP.HCM
A11: 4 | B11: KH-00004 | C11: Như Ý | D11: 34000000003 | E11: 130 Đinh Tiên Hoàng, F3, Q.Bình Thạnh, TP.HCM
A39: =+IF(OR($A38="",$B39=""),"",$A38+1) -> 
A103: =+IF(OR($A102="",$B103=""),"",$A102+1) -> 
A167: =+IF(OR($A166="",$B167=""),"",$A166+1) -> 
A201: Ghi chú: Chèn dòng trước khi thêm bản ghi khi đến dòng cuối

Sheet Nhập liệu
A1: =tt_Tên_Công_ty -> TỔNG CÔNG TY XD CTGT 6 - CÔNG TY CỔ PHẦN | G1: BẢNG NHẬP LIỆU
A2: =tt_Địa_chỉ -> 127 Đinh Tiên Hoàng, F3, Q.Bình Thạnh, TP.HCM | G2: ="Năm: "&'Thông tin'!C11 -> Năm: 2014
A3: ="Tên kho: "&tt_Tên_Kho -> Tên kho: Trạm Trộn BTNN Núi Nhọn
A6: Ngày ghi sổ | B6: Chứng từ | D6: Diễn giải | E6: Mã vật tư | F6: Tên vật tư | G6: ĐVT | H6: Nhập | I6: Xuất | J6: Khách hàng, nhà cung cấp
B7: Số chứng từ | C7: Ngày chứng từ | J7: Mã hiệu | K7: Tên đầy đủ | L7: Địa chỉ
A8: CỘNG | H8: =SUBTOTAL(9,H10:H1001) -> 83173 | I8: =SUBTOTAL(9,I10:I1001) -> 64244.5
A9: ngay | B9: ct_so | C9: ct_ngay | D9: diengiai | E9: mvt | F9: tenvt | G9: dvt | H9: slnhap | I9: slxuat | J9: ncc_mh | K9: ncc_ten | L9: ncc_diachi
A10: 2014-07-17 | B10: PN0001 | C10: =IF(A10="","",A10) -> 2014-07-17 | D10: Nhập dầu FO | E10: FO-001 | F10: Dầu FO | G10: Lít | H10: 20000 | J10: KH-00001 | K10: Công ty TNHH PuMa | L10: 127 Đinh Tiên Hoàng, F3, Q.Bình Thạnh, TP.HCM
A11: 2014-07-24 | B11: PN0002 | C11: 2014-07-24 | D11: Nhập Cát | E11: CA-001 | F11: Cát | G11: M3 | H11: 33 | J11: KH-00002 | K11: Công Ty TNHH Petrolimex | L11: 128 Đinh Tiên Hoàng, F3, Q.Bình Thạnh, TP.HCM
A12: 2014-07-26 | B12: PN0003 | C12: 2014-07-26 | D12: Nhập Bột đá Holeim | E12: CA-001 | F12: Cát | G12: M3 | H12: 43 | J12: KH-00004 | K12: Như Ý | L12: 130 Đinh Tiên Hoàng, F3, Q.Bình Thạnh, TP.HCM
A13: 2014-08-21 | B13: PN0004 | C13: 2014-08-21 | D13: Nhập Cát | E13: CA-001 | F13: Cát | G13: M3 | H13: 101 | J13: KH-00002 | K13: Công Ty TNHH Petrolimex | L13: 128 Đinh Tiên Hoàng, F3, Q.Bình Thạnh, TP.HCM
A14: 2014-08-23 | B14: PN0005 | C14: 2014-08-23 | D14: Nhập Nhựa đường | E14: ND-001 | F14: Nhựa đường Puma | G14: Tấn | H14: 11770 | J14: KH-00001 | K14: Công ty TNHH PuMa | L14: 127 Đinh Tiên Hoàng, F3, Q.Bình Thạnh, TP.HCM
A15: 2014-08-23 | B15: PN0006 | C15: 2014-08-23 | D15: Nhập Cát | E15: CA-001 | F15: Cát | G15: M3 | H15: 101 | J15: KH-00003 | K15: Công Ty Hocim | L15: 129 Đinh Tiên Hoàng, F3, Q.Bình Thạnh, TP.HCM
A16: 2014-10-15 | B16: PN0007 | C16: 2014-10-15 | D16: Nhập Cát | E16: CA-001 | F16: Cát | G16: M3 | H16: 22 | J16: KH-00003 | K16: Công Ty Hocim | L16: 129 Đinh Tiên Hoàng, F3, Q.Bình Thạnh, TP.HCM
A17: 2014-10-23 | B17: PN0008 | C17: 2014-10-23 | D17: Nhập Cát | E17: CA-001 | F17: Cát | G17: M3 | H17: 11 | J17: KH-00004 | K17: Như Ý | L17: 130 Đinh Tiên Hoàng, F3, Q.Bình Thạnh, TP.HCM
A18: 2014-10-24 | B18: PX0001 | C18: 2014-10-24 | D18: Xuất Cát | E18: CA-001 | F18: Cát | G18: M3 | I18: 12 | J18: KH-00004 | K18: Như Ý | L18: 130 Đinh Tiên Hoàng, F3, Q.Bình Thạnh, TP.HCM
A19: 2014-10-24 | B19: PX0001 | C19: 2014-10-24 | D19: Xuất Bột đá Holeim | E19: BK-001 | F19: Bột Khoáng Holeim | G19: Tấn | I19: 9.5 | J19: KH-00002 | K19: Công Ty TNHH Petrolimex | L19: 128 Đinh Tiên Hoàng, F3, Q.Bình Thạnh, TP.HCM
A20: 2014-10-24 | B20: PX0001 | C20: 2014-10-24 | D20: Xuất Nhựa đường | E20: ND-001 | F20: Nhựa đường Puma | G20: Tấn | I20: 10082 | J20: KH-00001 | K20: Công ty TNHH PuMa | L20: 127 Đinh Tiên Hoàng, F3, Q.Bình Thạnh, TP.HCM
A21: 2014-10-24 | B21: PX0001 | C21: 2014-10-24 | D21: Xuất dầu FO | E21: FO-001 | F21: Dầu FO | G21: Lít | I21: 11984 | J21: KH-00002 | K21: Công Ty TNHH Petrolimex | L21: 128 Đinh Tiên Hoàng, F3, Q.Bình Thạnh, TP.HCM
A22: 2014-10-24 | B22: PX0001 | C22: 2014-10-24 | D22: Xuất Bột đá Holeim | E22: BK-001 | F22: Bột Khoáng Holeim | G22: Tấn | I22: 11 | J22: KH-00002 | K22: Công Ty TNHH Petrolimex | L22: 128 Đinh Tiên Hoàng, F3, Q.Bình Thạnh, TP.HCM
A23: 2014-11-14 | B23: PN0009 | C23: 2014-11-14 | D23: Nhập Nhựa đường | E23: ND-001 | F23: Nhựa đường Puma | G23: Tấn | H23: 15510 | J23: KH-00002 | K23: Công Ty TNHH Petrolimex | L23: 128 Đinh Tiên Hoàng, F3, Q.Bình Thạnh, TP.HCM
A24: 2014-11-14 | B24: PN0009 | C24: 2014-11-14 | D24: Nhập Nhựa đường | E24: ND-001 | F24: Nhựa đường Puma | G24: Tấn | H24: 10020 | J24: KH-00004 | K24: Như Ý | L24: 130 Đinh Tiên Hoàng, F3, Q.Bình Thạnh, TP.HCM
A25: 2014-11-19 | B25: PN0010 | C25: 2014-11-19 | D25: Nhập Bột đá Holeim | E25: BK-001 | F25: Bột Khoáng Holeim | G25: Tấn | H25: 40 | J25: KH-00001 | K25: Công ty TNHH PuMa | L25: 127 Đinh Tiên Hoàng, F3, Q.Bình Thạnh, TP.HCM
A26: 2014-11-19 | B26: PX0003 | C26: 2014-11-19 | D26: Xuất Bột đá Holeim | E26: BK-001 | F26: Bột Khoáng Holeim | G26: Tấn | I26: 17 | J26: KH-00002 | K26: Công Ty TNHH Petrolimex | L26: 128 Đinh Tiên Hoàng, F3, Q.Bình Thạnh, TP.HCM
A27: 2014-11-19 | B27: PX0003 | C27: 2014-11-19 | D27: Xuất Nhựa đường | E27: ND-001 | F27: Nhựa đường Puma | G27: Tấn | I27: 13000 | J27: KH-00002 | K27: Công Ty TNHH Petrolimex | L27: 128 Đinh Tiên Hoàng, F3, Q.Bình Thạnh, TP.HCM
A28: 2014-11-19 | B28: PX0003 | C28: 2014-11-19 | D28: Xuất Cát | E28: CA-001 | F28: Cát | G28: M3 | I28: 120 | J28: KH-00003 | K28: Công Ty Hocim | L28: 129 Đinh Tiên Hoàng, F3, Q.Bình Thạnh, TP.HCM
A29: 2014-11-19 | B29: PX0003 | C29: 2014-11-19 | D29: Xuất Dầu FO | E29: FO-001 | F29: Dầu FO | G29: Lít | I29: 3243 | J29: KH-00003 | K29: Công Ty Hocim | L29: 129 Đinh Tiên Hoàng, F3, Q.Bình Thạnh, TP.HCM
A30: 2014-11-18 | B30: PX0002 | C30: 2014-11-18 | D30: Xuất Nhựa đường | E30: ND-001 | F30: Nhựa đường Puma | G30: Tấn | I30: 290 | J30: KH-00003 | K30: Công Ty Hocim | L30: 129 Đinh Tiên Hoàng, F3, Q.Bình Thạnh, TP.HCM
A31: 2014-11-18 | B31: PX0002 | C31: 2014-11-18 | D31: Xuất Bột đá Holeim | E31: BK-001 | F31: Bột Khoáng Holeim | G31: Tấn | I31: 2 | J31: KH-00002 | K31: Công Ty TNHH Petrolimex | L31: 128 Đinh Tiên Hoàng, F3, Q.Bình Thạnh, TP.HCM
A32: 2014-11-18 | B32: PX0002 | C32: 2014-11-18 | D32: Xuất Cát | E32: CA-001 | F32: Cát | G32: M3 | I32: 1 | J32: KH-00003 | K32: Công Ty Hocim | L32: 129 Đinh Tiên Hoàng, F3, Q.Bình Thạnh, TP.HCM
A33: 2014-11-22 | B33: PN0011 | C33: =IF(A33="","",A33) -> 2014-11-22 | D33: Nhập Dầu FO | E33: FO-001 | F33: Dầu FO | G33: Lít | H33: 9942 | J33: KH-00003 | K33: Công Ty Hocim | L33: 129 Đinh Tiên Hoàng, F3, Q.Bình Thạnh, TP.HCM
A34: 2014-11-25 | B34: PN0012 | C34: 2014-11-25 | D34: Nhập Nhựa đường | E34: ND-001 | F34: Nhựa đường Puma | G34: Tấn | H34: 15580 | J34: KH-00002 | K34: Công Ty TNHH Petrolimex | L34: 128 Đinh Tiên Hoàng, F3, Q.Bình Thạnh, TP.HCM
A35: 2014-11-26 | B35: PX0004 | C35: 2014-11-26 | D35: Xuất Nhựa đường | E35: ND-001 | F35: Nhựa đường Puma | G35: Tấn | I35: 21621 | J35: KH-00002 | K35: Công Ty TNHH Petrolimex | L35: 128 Đinh Tiên Hoàng, F3, Q.Bình Thạnh, TP.HCM
A36: 2014-11-26 | B36: PX0004 | C36: 2014-11-26 | D36: Xuất Bột đá Holeim | E36: BK-001 | F36: Bột Khoáng Holeim | G36: Tấn | I36: 30 | J36: KH-00004 | K36: Như Ý | L36: 130 Đinh Tiên Hoàng, F3, Q.Bình Thạnh, TP.HCM
A37: 2014-11-26 | B37: PX0004 | C37: 2014-11-26 | D37: Xuất dầu FO | E37: FO-001 | F37: Dầu FO | G37: Lít | I37: 3772 | J37: KH-00002 | K37: Công Ty TNHH Petrolimex | L37: 128 Đinh Tiên Hoàng, F3, Q.Bình Thạnh, TP.HCM
A38: 2014-11-26 | B38: PX0004 | C38: 2014-11-26 | D38: Xuất Cát | E38: CA-001 | F38: Cát | G38: M3 | I38: 50 | J38: KH-00002 | K38: Công Ty TNHH Petrolimex | L38: 128 Đinh Tiên Hoàng, F3, Q.Bình Thạnh, TP.HCM
C39: =IF(A39="","",A39) -> 
C75: =IF(A75="","",A75) -> 
C139: =IF(A139="","",A139) -> 
C203: =IF(A203="","",A203) -> 
C267: =IF(A267="","",A267) -> 
C331: =IF(A331="","",A331) -> 
C395: =IF(A395="","",A395) -> 
C459: =IF(A459="","",A459) -> 
C523: =IF(A523="","",A523) -> 
C587: =IF(A587="","",A587) -> 
C651: =IF(A651="","",A651) -> 
C715: =IF(A715="","",A715) -> 
C779: =IF(A779="","",A779) -> 
C843: =IF(A843="","",A843) -> 
C907: =IF(A907="","",A907) -> 
C971: =IF(A971="","",A971) -> 
A1003: Ghi chú: Chèn dòng trước khi thêm bản ghi khi đến dòng cuối

Sheet Nhập-Xuất-Tồn
A1: =tt_Tên_Công_ty -> TỔNG CÔNG TY XD CTGT 6 - CÔNG TY CỔ PHẦN
A2: =tt_Địa_chỉ -> 127 Đinh Tiên Hoàng, F3, Q.Bình Thạnh, TP.HCM
A3: ="Tên kho: "&tt_Tên_Kho -> Tên kho: Trạm Trộn BTNN Núi Nhọn
A5: BÁO CÁO NHẬP XUẤT TỒN
A6: ='Thông tin'!C12 -> 2014-01-01
A7: ='Thông tin'!C13 -> 2014-11-30
A9: Mã hàng | B9: Tên hàng | C9: ĐVT | D9: Tồn đầu kỳ | E9: Nhập trong kỳ | F9: Xuất trong kỳ | G9: Tồn cuối kỳ
A11: =_xll.TDbArray("SELECT mavt, tenvt, dvt, sldauky, slnhap, slxuat, slton FROM tbvattu WHERE mavt<>''","write:2") -> ND-001 | B11: Nhựa đường Puma | C11: Tấn | D11: 2 | E11: 52880 | F11: 44993 | G11: 7887
A12: FO-001 | B12: Dầu FO | C12: Lít | D12: 2 | E12: 29942 | F12: 18999 | G12: 10943
A13: BK-001 | B13: Bột Khoáng Holeim | C13: Tấn | D13: 2 | E13: 40 | F13: 69.5 | G13: -29.5
A14: CA-001 | B14: Cát | C14: M3 | D14: 2 | E14: 311 | F14: 183 | G14: 128
A16: =IF('Vật tư'!$B4998="","",'Vật tư'!$B4998) ->  | B16: =IF($A16="","",VLOOKUP(A16,'Vật tư'!$B$9:$C$65534,2,0)) ->  | C16: =IF(A16="","",VLOOKUP($A16,'Vật tư'!$B$9:$D$65534,3,0)) ->  | D16: =IF($A16="","",VLOOKUP($A16,'Vật tư'!$B$9:$E$65534,4,0)) ->  | E16: =IF($A16="","",SUMIF('Nhập liệu'!$E$10:$E$61538,A16,'Nhập liệu'!$H$10:$H$61538)) ->  | F16: =IF($A16="","",SUMIF('Nhập liệu'!$E$10:$E$61538,A16,'Nhập liệu'!$I$10:$I$61538)) ->  | G16: =IF($A16="","",D16+E16-F16) -> 
A17: CỘNG | D17: =SUBTOTAL(9,D10:D16) -> 8 | E17: =SUBTOTAL(9,E10:E16) -> 83173 | F17: =SUBTOTAL(9,F10:F16) -> 64244.5 | G17: =SUBTOTAL(9,G10:G16) -> 18928.5
D19: ="Bình Thuận,"&" "&"ngày"&" "&DAY(NOW())&" "&"tháng"&" "&MONTH(NOW())&" "&"năm"&" "&YEAR(NOW()) -> Bình Thuận, ngày 11 tháng 8 năm 2025
A20: Người lập biểu - Thủ kho | E20: Trạm BTNN
A25: =IF(tt_Người_lập_biểu="","",tt_Người_lập_biểu) -> Nguyễn Phi Long | E25: =IF(tt_Thủ_kho="","",tt_Thủ_kho) -> Nguyễn Phi Long

Sheet Chi tiết N-X-T
A1: =tt_Tên_Công_ty -> TỔNG CÔNG TY XD CTGT 6 - CÔNG TY CỔ PHẦN
A2: =tt_Địa_chỉ -> 127 Đinh Tiên Hoàng, F3, Q.Bình Thạnh, TP.HCM
A3: ="Tên kho: "&tt_Tên_Kho -> Tên kho: Trạm Trộn BTNN Núi Nhọn
A5: SỔ CHI TIẾT VẬT TƯ CÔNG CỤ DỤNG CỤ
A7: ='Thông tin'!C12 -> 2014-01-01
A8: ='Thông tin'!C13 -> 2014-11-30
C9: Mã vật tư, công cụ dụng cụ: | D9: FO-001
C10: Tên vật tư, công cụ dụng cụ: | D10: =_xll.TDbScalar("SELECT tenvt FROM tbvattu WHERE mavt=@mavt",,D9) -> Dầu FO
A11: Chứng từ | C11: Diễn giải | D11: Số lượng nhập trong kỳ | E11: Số lượng xuất trong kỳ | F11: Số lượng tồn cuối kỳ | G11: Ghi Chú
A12: Số chứng từ | B12: Ngày tháng chứng từ
C13: Số dư đầu kỳ: | F13: =_xll.TDbScalar("SELECT sldauky FROM tbvattu WHERE mavt=@mavt",,D9) -> 2
A14: =_xll.TDbArray("SELECT ct_so, ct_ngay, diengiai, slnhap, slxuat FROM tbnhaplieu WHERE mvt=@mavt",,D9) -> PN0001 | B14: 2014-07-17 | C14: Nhập dầu FO | D14: 20000 | F14: =IF(SUM(D14:E14)=0,"-",$F$13+SUM(D14:$D$14)-SUM(E14:$E$14)) -> 20002
A15: PX0001 | B15: 2014-10-24 | C15: Xuất dầu FO | E15: 11984 | F15: =IF(SUM(D15:E15)=0,"-",$F$13+SUM(D$14:$D15)-SUM(E$14:$E15)) -> 8018
A16: PX0003 | B16: 2014-11-19 | C16: Xuất Dầu FO | E16: 3243 | F16: =IF(SUM(D16:E16)=0,"-",$F$13+SUM(D$14:$D16)-SUM(E$14:$E16)) -> 4775
A17: PN0011 | B17: 2014-11-22 | C17: Nhập Dầu FO | D17: 9942 | F17: =IF(SUM(D17:E17)=0,"-",$F$13+SUM(D$14:$D17)-SUM(E$14:$E17)) -> 14717
A18: PX0004 | B18: 2014-11-26 | C18: Xuất dầu FO | E18: 3772 | F18: =IF(SUM(D18:E18)=0,"-",$F$13+SUM(D$14:$D18)-SUM(E$14:$E18)) -> 10945
F19: =IF(SUM(D19:E19)=0,"-",$F$13+SUM(D$14:$D19)-SUM(E$14:$E19)) -> -
F20: =IF(SUM(D20:E20)=0,"-",$F$13+SUM(D$14:$D20)-SUM(E$14:$E20)) -> -
F21: =IF(SUM(D21:E21)=0,"-",$F$13+SUM(D$14:$D21)-SUM(E$14:$E21)) -> -
F22: =IF(SUM(D22:E22)=0,"-",$F$13+SUM(D$14:$D22)-SUM(E$14:$E22)) -> -
F23: =IF(SUM(D23:E23)=0,"-",$F$13+SUM(D$14:$D23)-SUM(E$14:$E23)) -> -
F24: =IF(SUM(D24:E24)=0,"-",$F$13+SUM(D$14:$D24)-SUM(E$14:$E24)) -> -
F25: =IF(SUM(D25:E25)=0,"-",$F$13+SUM(D$14:$D25)-SUM(E$14:$E25)) -> -
F26: =IF(SUM(D26:E26)=0,"-",$F$13+SUM(D$14:$D26)-SUM(E$14:$E26)) -> -
F27: =IF(SUM(D27:E27)=0,"-",$F$13+SUM(D$14:$D27)-SUM(E$14:$E27)) -> -
F28: =IF(SUM(D28:E28)=0,"-",$F$13+SUM(D$14:$D28)-SUM(E$14:$E28)) -> -
F29: =IF(SUM(D29:E29)=0,"-",$F$13+SUM(D$14:$D29)-SUM(E$14:$E29)) -> -
F30: =IF(SUM(D30:E30)=0,"-",$F$13+SUM(D$14:$D30)-SUM(E$14:$E30)) -> -
F31: =IF(SUM(D31:E31)=0,"-",$F$13+SUM(D$14:$D31)-SUM(E$14:$E31)) -> -
F32: =IF(SUM(D32:E32)=0,"-",$F$13+SUM(D$14:$D32)-SUM(E$14:$E32)) -> -
F33: =IF(SUM(D33:E33)=0,"-",$F$13+SUM(D$14:$D33)-SUM(E$14:$E33)) -> -
F34: =IF(SUM(D34:E34)=0,"-",$F$13+SUM(D$14:$D34)-SUM(E$14:$E34)) -> -
F35: =IF(SUM(D35:E35)=0,"-",$F$13+SUM(D$14:$D35)-SUM(E$14:$E35)) -> -
F36: =IF(SUM(D36:E36)=0,"-",$F$13+SUM(D$14:$D36)-SUM(E$14:$E36)) -> -
F37: =IF(SUM(D37:E37)=0,"-",$F$13+SUM(D$14:$D37)-SUM(E$14:$E37)) -> -
F38: =IF(SUM(D38:E38)=0,"-",$F$13+SUM(D$14:$D38)-SUM(E$14:$E38)) -> -
F39: =IF(SUM(D39:E39)=0,"-",$F$13+SUM(D$14:$D39)-SUM(E$14:$E39)) -> -
F40: =IF(SUM(D40:E40)=0,"-",$F$13+SUM(D$14:$D40)-SUM(E$14:$E40)) -> -
F41: =IF(SUM(D41:E41)=0,"-",$F$13+SUM(D$14:$D41)-SUM(E$14:$E41)) -> -
F42: =IF(SUM(D42:E42)=0,"-",$F$13+SUM(D$14:$D42)-SUM(E$14:$E42)) -> -
F43: =IF(SUM(D43:E43)=0,"-",$F$13+SUM(D$14:$D43)-SUM(E$14:$E43)) -> -
F44: =IF(SUM(D44:E44)=0,"-",$F$13+SUM(D$14:$D44)-SUM(E$14:$E44)) -> -
F45: =IF(SUM(D45:E45)=0,"-",$F$13+SUM(D$14:$D45)-SUM(E$14:$E45)) -> -
F46: =IF(SUM(D46:E46)=0,"-",$F$13+SUM(D$14:$D46)-SUM(E$14:$E46)) -> -
F47: =IF(SUM(D47:E47)=0,"-",$F$13+SUM(D$14:$D47)-SUM(E$14:$E47)) -> -
F48: =IF(SUM(D48:E48)=0,"-",$F$13+SUM(D$14:$D48)-SUM(E$14:$E48)) -> -
F49: =IF(SUM(D49:E49)=0,"-",$F$13+SUM(D$14:$D49)-SUM(E$14:$E49)) -> -
A50: =IF($G50="","",INDEX('Nhập liệu'!$B$10:$B$46002,$G50)) ->  | B50: =IF($G50="","",INDEX('Nhập liệu'!$A$10:$A$46002,$G50)) ->  | C50: =IF($G50="","",INDEX('Nhập liệu'!$D$10:$D$46002,$G50)) ->  | D50: =IF($G50="","",INDEX('Nhập liệu'!$H$10:$H$46002,$G50)) ->  | E50: =IF($G50="","",INDEX('Nhập liệu'!$I$10:$I$46002,$G50)) ->  | F50: =IF(SUM(D50:E50)=0,"-",$F$13+SUM(D$14:$D50)-SUM(E$14:$E50)) -> -
A51: =IF($G51="","",INDEX('Nhập liệu'!$B$10:$B$46002,$G51)) ->  | B51: =IF($G51="","",INDEX('Nhập liệu'!$A$10:$A$46002,$G51)) ->  | C51: =IF($G51="","",INDEX('Nhập liệu'!$D$10:$D$46002,$G51)) ->  | D51: =IF($G51="","",INDEX('Nhập liệu'!$H$10:$H$46002,$G51)) ->  | E51: =IF($G51="","",INDEX('Nhập liệu'!$I$10:$I$46002,$G51)) ->  | F51: =IF(SUM(D51:E51)=0,"-",$F$13+SUM(D$14:$D51)-SUM(E$14:$E51)) -> -
A52: =IF($G52="","",INDEX('Nhập liệu'!$B$10:$B$46002,$G52)) ->  | B52: =IF($G52="","",INDEX('Nhập liệu'!$A$10:$A$46002,$G52)) ->  | C52: =IF($G52="","",INDEX('Nhập liệu'!$D$10:$D$46002,$G52)) ->  | D52: =IF($G52="","",INDEX('Nhập liệu'!$H$10:$H$46002,$G52)) ->  | E52: =IF($G52="","",INDEX('Nhập liệu'!$I$10:$I$46002,$G52)) ->  | F52: =IF(SUM(D52:E52)=0,"-",$F$13+SUM(D$14:$D52)-SUM(E$14:$E52)) -> -
A53: =IF($G53="","",INDEX('Nhập liệu'!$B$10:$B$46002,$G53)) ->  | B53: =IF($G53="","",INDEX('Nhập liệu'!$A$10:$A$46002,$G53)) ->  | C53: =IF($G53="","",INDEX('Nhập liệu'!$D$10:$D$46002,$G53)) ->  | D53: =IF($G53="","",INDEX('Nhập liệu'!$H$10:$H$46002,$G53)) ->  | E53: =IF($G53="","",INDEX('Nhập liệu'!$I$10:$I$46002,$G53)) ->  | F53: =IF(SUM(D53:E53)=0,"-",$F$13+SUM(D$14:$D53)-SUM(E$14:$E53)) -> -
A54: =IF($G54="","",INDEX('Nhập liệu'!$B$10:$B$46002,$G54)) ->  | B54: =IF($G54="","",INDEX('Nhập liệu'!$A$10:$A$46002,$G54)) ->  | C54: =IF($G54="","",INDEX('Nhập liệu'!$D$10:$D$46002,$G54)) ->  | D54: =IF($G54="","",INDEX('Nhập liệu'!$H$10:$H$46002,$G54)) ->  | E54: =IF($G54="","",INDEX('Nhập liệu'!$I$10:$I$46002,$G54)) ->  | F54: =IF(SUM(D54:E54)=0,"-",$F$13+SUM(D$14:$D54)-SUM(E$14:$E54)) -> -
A55: =IF($G55="","",INDEX('Nhập liệu'!$B$10:$B$46002,$G55)) ->  | B55: =IF($G55="","",INDEX('Nhập liệu'!$A$10:$A$46002,$G55)) ->  | C55: =IF($G55="","",INDEX('Nhập liệu'!$D$10:$D$46002,$G55)) ->  | D55: =IF($G55="","",INDEX('Nhập liệu'!$H$10:$H$46002,$G55)) ->  | E55: =IF($G55="","",INDEX('Nhập liệu'!$I$10:$I$46002,$G55)) ->  | F55: =IF(SUM(D55:E55)=0,"-",$F$13+SUM(D$14:$D55)-SUM(E$14:$E55)) -> -
A56: =IF($G56="","",INDEX('Nhập liệu'!$B$10:$B$46002,$G56)) ->  | B56: =IF($G56="","",INDEX('Nhập liệu'!$A$10:$A$46002,$G56)) ->  | C56: =IF($G56="","",INDEX('Nhập liệu'!$D$10:$D$46002,$G56)) ->  | D56: =IF($G56="","",INDEX('Nhập liệu'!$H$10:$H$46002,$G56)) ->  | E56: =IF($G56="","",INDEX('Nhập liệu'!$I$10:$I$46002,$G56)) ->  | F56: =IF(SUM(D56:E56)=0,"-",$F$13+SUM(D$14:$D56)-SUM(E$14:$E56)) -> -
A57: =IF($G57="","",INDEX('Nhập liệu'!$B$10:$B$46002,$G57)) ->  | B57: =IF($G57="","",INDEX('Nhập liệu'!$A$10:$A$46002,$G57)) ->  | C57: =IF($G57="","",INDEX('Nhập liệu'!$D$10:$D$46002,$G57)) ->  | D57: =IF($G57="","",INDEX('Nhập liệu'!$H$10:$H$46002,$G57)) ->  | E57: =IF($G57="","",INDEX('Nhập liệu'!$I$10:$I$46002,$G57)) ->  | F57: =IF(SUM(D57:E57)=0,"-",$F$13+SUM(D$14:$D57)-SUM(E$14:$E57)) -> -
A58: =IF($G58="","",INDEX('Nhập liệu'!$B$10:$B$46002,$G58)) ->  | B58: =IF($G58="","",INDEX('Nhập liệu'!$A$10:$A$46002,$G58)) ->  | C58: =IF($G58="","",INDEX('Nhập liệu'!$D$10:$D$46002,$G58)) ->  | D58: =IF($G58="","",INDEX('Nhập liệu'!$H$10:$H$46002,$G58)) ->  | E58: =IF($G58="","",INDEX('Nhập liệu'!$I$10:$I$46002,$G58)) ->  | F58: =IF(SUM(D58:E58)=0,"-",$F$13+SUM(D$14:$D58)-SUM(E$14:$E58)) -> -
A59: CỘNG | D59: =SUM(D14:D58) -> 29942 | E59: =SUM(E14:E58) -> 18999 | F59: =F13+D59-E59 -> 10945
C61: ="Bình Thuận,"&" "&"ngày"&" "&DAY(NOW())&" "&"tháng"&" "&MONTH(NOW())&" "&"năm"&" "&YEAR(NOW()) -> Bình Thuận, ngày 11 tháng 8 năm 2025
A63: Người lập biểu | D63: Thủ kho
A69: =IF(tt_Người_lập_biểu="","",tt_Người_lập_biểu) -> Nguyễn Phi Long | D69: =IF(tt_Thủ_kho="","",tt_Thủ_kho) -> Nguyễn Phi Long

Sheet Phiếu Nhập-Xuất
A1: =tt_Tên_Công_ty -> TỔNG CÔNG TY XD CTGT 6 - CÔNG TY CỔ PHẦN | E1: =IF(LEFT($F$5,2)="PN","Mẫu số : 01-VT","Mẫu số : 02-VT") -> Mẫu số : 02-VT | J1: Người lập phiếu | L1: =IF(LEFT($F$5,2)="PN","Người giao hàng","Người nhận hàng") -> Người nhận hàng | N1: Thủ kho | P1: Thủ trưởng đơn vị
A2: =tt_Địa_chỉ -> 127 Đinh Tiên Hoàng, F3, Q.Bình Thạnh, TP.HCM | E2: (Ban hành theo QĐ số 15/2006/QĐ-BTC | J2: (Ký, họ tên) | L2: (Ký, họ tên) | N2: (Ký, họ tên) | P2: (Ký, họ tên)
E3: ngày 20/03/2006 của Bộ trưởng BTC)
A4: =IF(LEFT($F$5,2)="PN"," PHIẾU NHẬP KHO"," PHIẾU XUẤT KHO") -> PHIẾU XUẤT KHO
B5: Liên : 1 | E5: Số : | F5: PX0001 | G5: 2014-10-24
A6: =SUBSTITUTE(IF($F$5="","",TDateToText(G5)),"ngày","Ngày") ->  | J6: =IF(tt_Người_lập_biểu="","",tt_Người_lập_biểu) -> Nguyễn Phi Long | N6: =IF(tt_Thủ_kho="","",tt_Thủ_kho) -> Nguyễn Phi Long | P6: =IF(tt_Thủ_trưởng="","",tt_Thủ_trưởng) -> Ngô Ngọc Trung
H8: - Khách hàng: | J8: =_xll.TDbScalar("SELECT ncc_ten FROM tbnhaplieu WHERE ct_so=@ct_so",,F5) -> Như Ý | L8: - Địa chỉ: | M8: =_xll.TDbScalar("SELECT ncc_diachi FROM tbnhaplieu WHERE ct_so=@ct_so",,F5) -> 130 Đinh Tiên Hoàng, F3, Q.Bình Thạnh, TP.HCM
H9: =IF(LEFT($F$5,2)="PN","- Nhập tại kho: "&tt_Tên_Kho,"- Xuất tại kho: "&tt_Tên_Kho) -> - Xuất tại kho: Trạm Trộn BTNN Núi Nhọn | L9: =IF(LEFT($F$5,2)="PN"," Địa điểm :"&tt_Địa_chỉ,"- Địa điểm :"&"") -> - Địa điểm : | M9: =tt_Địa_chỉ -> 127 Đinh Tiên Hoàng, F3, Q.Bình Thạnh, TP.HCM
A11: Số TT | B11: Tên, nhãn hiệu, quy cách phẩm chất, vật tư (sản phẩm hàng hóa) | C11: Mã hàng | D11: Đơn vị tính | E11: =IF(LEFT(F5,2)="PN","Số lượng nhập theo hóa đơn","Số lượng xuất theo hóa đơn") -> Số lượng xuất theo hóa đơn | F11: Ghi chú
A13: =_xll.TDbArray("SELECT tenvt, mvt, dvt, IIF(ct_so LIKE 'PN%', slnhap , slxuat), diengiai FROM tbnhaplieu WHERE ct_so = @ct_so","write:2, stt:true,",F5) -> 1 | B13: Cát | C13: CA-001 | D13: M3 | E13: 12 | F13: Xuất Cát
A14: 2 | B14: Bột Khoáng Holeim | C14: BK-001 | D14: Tấn | E14: 9.5 | F14: Xuất Bột đá Holeim
A15: 3 | B15: Nhựa đường Puma | C15: ND-001 | D15: Tấn | E15: 10082 | F15: Xuất Nhựa đường
A16: 4 | B16: Dầu FO | C16: FO-001 | D16: Lít | E16: 11984 | F16: Xuất dầu FO
A17: 5 | B17: Bột Khoáng Holeim | C17: BK-001 | D17: Tấn | E17: 11 | F17: Xuất Bột đá Holeim
